Workbook

Sheet Start (hidden)
B4: Das Makro ist momentan nicht aktiviert
B5: Bitte Aktivieren Sie das Makro
B6: Ohne Makro funktioniert diese Datei nicht
B8: roland.schnurr@sixsigmablackbelt.de
B10: https://www.sixsigmablackbelt.de

Sheet input
N2: =language!C1 -> Prozess- und Maschinenfähigkeit | AB2: =IF(calculation!A210=0,language!BJ1,language!BK1) -> Status: Die Werte im Arbeitsblatt sind kalkuliert
B4: i | C4: xi | E4: i | F4: xi | H4: i | I4: xi | K4: i | L4: xi | N4: =language!D1 -> Werte können geändert werden
B5: 1 | C5: 0.13 | E5: 51 | H5: 101 | K5: 151 | N5: =language!E1 -> Werte werden berechnet (Blatt Berechnung)
B6: 2 | C6: 0.78 | E6: 52 | H6: 102 | K6: 152
B7: 3 | C7: 0.23 | E7: 53 | H7: 103 | K7: 153 | N7: =language!F1 -> Artikel: | O7: Halter
B8: 4 | C8: 0.04 | E8: 54 | H8: 104 | K8: 154 | N8: =language!G1 -> Nummer: | O8: C2G234824ß
B9: 5 | C9: 0.25 | E9: 55 | H9: 105 | K9: 155 | N9: =language!H1 -> Zeichnung: | O9: UZT1340124357
B10: 6 | C10: 0.3 | E10: 56 | H10: 106 | K10: 156 | N10: =language!I1 -> Prüfer: | O10: Maier
B11: 7 | C11: 0.35 | E11: 57 | H11: 107 | K11: 157 | N11: =language!J1 -> Messmittel: | O11: Waage 47.22452
B12: 8 | C12: 0.34 | E12: 58 | H12: 108 | K12: 158 | N12: =language!K1 -> Datum: | O12: 2014-12-10
B13: 9 | C13: 0.42 | E13: 59 | H13: 109 | K13: 159 | N13: =language!L1 -> Merkmal: | O13: Länge
B14: 10 | C14: 0.39 | E14: 60 | H14: 110 | K14: 160 | N14: =language!M1 -> Maßeinheit: | O14: mm
B15: 11 | C15: 0.32 | E15: 61 | H15: 111 | K15: 161 | N15: =language!N1 -> Sollwert msoll = | P15: 20
B16: 12 | C16: 0.16 | E16: 62 | H16: 112 | K16: 162 | N16: =language!O1 -> UGW
B17: 13 | C17: 0.48 | E17: 63 | H17: 113 | K17: 163 | N17: =language!P1 -> OGW | P17: 1
B18: 14 | C18: 0.1 | E18: 64 | H18: 114 | K18: 164 | N18: =language!Q1 -> Anzahl Klassen Histogramm | P18: 20
B19: 15 | C19: 0.22 | E19: 65 | H19: 115 | K19: 165 | N19: =language!R1 -> Cpk< | O19: 1.33 | P19: =language!V1 -> Prozess nicht fähig
B20: 16 | C20: 0.3 | E20: 66 | H20: 116 | K20: 166 | N20: =language!S1 -> Cpk | O20: =language!U1 -> dazwischen | P20: =language!W1 -> Prozess bedingt fähig
B21: 17 | C21: 0.46 | E21: 67 | H21: 117 | K21: 167 | N21: =language!T1 -> Cpk> | O21: 1.66 | P21: =language!X1 -> Prozess fähig
B22: 18 | C22: 0.14 | E22: 68 | H22: 118 | K22: 168 | N22: =language!BP1 -> Verteilung | O22: =language!BR1 -> Normalverteilung
B23: 19 | C23: 0.22 | E23: 69 | H23: 119 | K23: 169 | O23: =language!BS1 -> Betragsverteilung 1. Art
B24: 20 | C24: 0.45 | E24: 70 | H24: 120 | K24: 170
B25: 21 | E25: 71 | H25: 121 | K25: 171 | N25: =language!Y1 -> Stichprobenumfang | P25: =calculation!I25 -> 20
B26: 22 | E26: 72 | H26: 122 | K26: 172 | N26: =language!Z1 -> Mittelwert | P26: =calculation!I27 -> 0.304
B27: 23 | E27: 73 | H27: 123 | K27: 173 | N27: =language!AA1 -> Standardabweichung | P27: =Standardabweichung -> 0.1685042558
B28: 24 | E28: 74 | H28: 124 | K28: 174 | N28: =language!AB1 -> Die Werte sind nach Andersson Darling Test | P28: =IF(calculation!I22<0.05,language!AD1,language!AC1) -> normalverteilt
B29: 25 | E29: 75 | H29: 125 | K29: 175
B30: 26 | E30: 76 | H30: 126 | K30: 176
B31: 27 | E31: 77 | H31: 127 | K31: 177 | N31: =language!AP1 -> Fähigkeits- kennwerte | O31: =language!AL1 -> Cmu | P31: =calculation!I31 -> 
B32: 28 | E32: 78 | H32: 128 | K32: 178 | O32: =language!AM1 -> Cmo | P32: =calculation!I32 -> 
B33: 29 | E33: 79 | H33: 129 | K33: 179 | O33: =language!AN1 -> Cm | P33: =calculation!I30 -> 
B34: 30 | E34: 80 | H34: 130 | K34: 180 | O34: =language!AO1 -> Cmk | P34: =calculation!I33 -> 1.3308
B35: 31 | E35: 81 | H35: 131 | K35: 181 | N35: =language!AQ1 -> Bewertung cmk => | P35: =IF(P34<O19,P19,IF(P34>O21,P21,P20)) -> Prozess bedingt fähig
B36: 32 | E36: 82 | H36: 132 | K36: 182
B37: 33 | E37: 83 | H37: 133 | K37: 183 | N37: =language!AR1 -> Median z | P37: =Median -> 0.3
B38: 34 | E38: 84 | H38: 134 | K38: 184 | N38: =language!AS1 -> Spannweite R | P38: =Spannweite -> 0.74
B39: 35 | E39: 85 | H39: 135 | K39: 185 | N39: =language!AT1 -> Minimum | P39: =Minimum -> 0.04
B40: 36 | E40: 86 | H40: 136 | K40: 186 | N40: =language!AU1 -> Maximum | P40: =Maximum -> 0.78
B41: 37 | E41: 87 | H41: 137 | K41: 187
B42: 38 | E42: 88 | H42: 138 | K42: 188 | N42: =language!AV1 -> Berechnete Leistung in ppm
B43: 39 | E43: 89 | H43: 139 | K43: 189 | N43: =language!AW1 -> Über- schreitungs- anteil | O43: =language!AX1 -> pUGW | P43: =calculation!I35 -> 0
B44: 40 | E44: 90 | H44: 140 | K44: 190 | O44: =language!AY1 -> pOGW | P44: =calculation!I34 -> 33
B45: 41 | E45: 91 | H45: 141 | K45: 191 | O45: =language!AZ1 -> p | P45: =P43+P44 -> 33
B46: 42 | E46: 92 | H46: 142 | K46: 192
B47: 43 | E47: 93 | H47: 143 | K47: 193 | N47: =language!BA1 -> Beobachtete Leistung in ppm
B48: 44 | E48: 94 | H48: 144 | K48: 194 | N48: =language!AW1 -> Über- schreitungs- anteil | O48: =language!AX1 -> pUGW | P48: =BEOBPUGW -> 0 | R48: =language!BL1 -> Ist Ihr Messwert einseitig begrenzt, so geben Sie nur den entsprechenden oberen oder unteren Grenzwert an. Bei einer einseitigen Grenze wird im industriellen Umfeld nur der Cmk berechnet.
B49: 45 | E49: 95 | H49: 145 | K49: 195 | O49: =language!AY1 -> pOGW | P49: =BEOBPOGW -> 0
B50: 46 | E50: 96 | H50: 146 | K50: 196 | O50: =language!AZ1 -> p | P50: =P49+P48 -> 0
B51: 47 | E51: 97 | H51: 147 | K51: 197
B52: 48 | E52: 98 | H52: 148 | K52: 198
B53: 49 | E53: 99 | H53: 149 | K53: 199
B54: 50 | E54: 100 | H54: 150 | K54: 200
B55: 50 | C55: 56 | E55: 100 | F55: 22 | H55: 150 | I55: 6 | K55: 200 | L55: 33

Sheet calculation (hidden)
A1: ["{\"ergebnisuservalidieren\":[\"user 0 mit cmk in datensatz nicht vorhanden\"],\"ergebnisuservalidieren_status\":[\"nein\"],\"pwertadtest\":[\"0.5187\"],\"Verteilung\":[\"betrag1\"],\"summe\":[6.08],\"stichprobenumfang\":[20],\"sd\":[0.16850425576],\"mittelwert\":[0.304],\"Lizenzdatum\":[\"\"],\"Notiz\":[\" \"],\"cp\":[\"\"],\"cpu\":[\"\"],\"cpo\":[\"\"],\"cpk\":[\"1.3308\"],\"ppmo\":[\"33\"],\"ppmu\":[\"0\"],\"platz1\":[\"platz1\"],\"platz2\":[\"platz1\"],\"platz3\":[\"platz1\"],\"Verteilung Diagramm\":[{\"qfoldnorm\":919,\"dfoldnorm\":1087963},{\"qfoldnorm\":9183,\"dfoldnorm\":1090680},{\"qfoldnorm\":22860,\"dfoldnorm\":1104876},{\"qfoldnorm\":45055,\"dfoldnorm\":1152882},{\"qfoldnorm\":85844,\"dfoldnorm\":1312864},{\"qfoldnorm\":152527,\"dfoldnorm\":1702119},{\"qfoldnorm\":206126,\"dfoldnorm\":2019645},{\"qfoldnorm\":253164,\"dfoldnorm\":2213380},{\"qfoldnorm\":297513,\"dfoldnorm\":2274185},{\"qfoldnorm\":342006,\"dfoldnorm\":2197989},{\"qfoldnorm\":389673,\"dfoldnorm\":1976475},{\"qfoldnorm\":445488,\"dfoldnorm\":1590923},{\"qfoldnorm\":522910,\"dfoldnorm\":997170},{\"qfoldnorm\":586851,\"dfoldnorm\":585996},{\"qfoldnorm\":642311,\"dfoldnorm\":332071},{\"qfoldnorm\":706795,\"dfoldnorm\":151430},{\"qfoldnorm\":841240,\"dfoldnorm\":19130}]}"]
A2: =IF(B2=C2,0,1) -> 0 | B2: betrag1 | C2: =M16 -> betrag1
A3: =IF(B3=C3,0,1) -> 0 | B3: 1 | C3: =O16 -> 1
A4: 0 | C4: =Q16 -> 
A5: =IF(B5=C5,0,1) -> 0 | B5: 0.13 | C5: =IF(input!C5="","",input!C5) -> 0.13 | D5: " | E5: =SUBSTITUTE(C5,",",".") -> 0.13 | F5: ", | G5: , | AE5: 1 | AF5: =IF((Anzahl>AE5),AE5,Anzahl) -> 1 | AG5: =IF(B5<>"",B5,#N/A) -> 0.13 | AH5: =IF(OGW="",#N/A,IF(B5<>"",OGW,#N/A)) -> 1 | AI5: =IF(UGW="",#N/A,IF(B5<>"",UGW,#N/A)) ->  | AJ5: =I27-Standardabweichung -> 0.1354957442 | AK5: =fxds+Standardabweichung -> 0.4725042558 | AL5: =fxds-2*Standardabweichung -> -0.03300851152 | AM5: =fxds+2*Standardabweichung -> 0.6410085115 | AN5: =fxds-3*Standardabweichung -> -0.2015127673 | AO5: =fxds+3*Standardabweichung -> 0.8095127673 | AP5: =fxds -> 0.304 | AR5: =IF(AND(B5<>"",B5<UGW),1,0) -> 0 | AS5: =IF(AND(B5<>"",B5>OGW),1,0) -> 0 | AW5: -6 | AX5: =fxds+AW5*Standardabweichung -> -0.7070255346 | AY5: 3 | AZ5: =AY5*2 -> 6 | BA5: =AX5 -> -0.7070255346 | BD5: 1 | BE5: =IF(B5="",NA(),SMALL(xi,BF5)) -> 0.04 | BF5: =IF(B5="","",1) -> 1 | BG5: =IF(B5="","",NORMSDIST((BE5-fxds)/Standardabweichung)) -> 0.05858937442 | BH5: =IF(B5="","",1-BG5) -> 0.9414106256 | BI5: =IF(IF(B5="","",SMALL(BG,BF5))=0,0.0001,IF(B5="","",SMALL(BG,BF5))) -> 0.002365104749 | BJ5: =IF(B5="","",(2*BF5-1)*(LN(BI5)+LN(BG5))) -> -8.884134889 | BK5: =IF(B5="",NA(),NORMSINV((BF5-0.3)/(Anzahl+0.4))) -> -1.820864538 | BN5: =Standardabweichung*BO5+fxds -> 0.8095127673 | BO5: 3
A6: =IF(B6=C6,0,1) -> 0 | B6: 0.78 | C6: =IF(input!C6="","",input!C6) -> 0.78 | D6: " | E6: =SUBSTITUTE(C6,",",".") -> 0.78 | F6: ", | AE6: 2 | AF6: 2 | AG6: =IF(B6<>"",B6,#N/A) -> 0.78 | AH6: 1 | AJ6: =AJ5 -> 0.1354957442 | AK6: 0.4725042558 | AL6: -0.03300851152 | AM6: 0.6410085115 | AN6: -0.2015127673 | AO6: 0.8095127673 | AP6: 0.304 | AR6: 0 | AS6: 0 | AW6: -5 | AX6: -0.5385212788 | AY6: 3 | AZ6: =AY6*2 -> 6 | BA6: =BA5 -> -0.7070255346 | BD6: 2 | BE6: 0.1 | BF6: =IF(B6="","",1+BF5) -> 2 | BG6: 0.1130144192 | BH6: =IF(B6="","",1-BG6) -> 0.8869855808 | BI6: 0.1481307577 | BJ6: =IF(B6="","",(2*BF6-1)*(LN(BI6)+LN(BG6))) -> -12.26969929 | BK6: -1.382994127 | BN6: =Standardabweichung*BO6+fxds -> 0.304 | BO6: 0
A7: 0 | B7: 0.23 | C7: =IF(input!C7="","",input!C7) -> 0.23 | D7: " | E7: 0.23 | F7: ", | I7: string nach R | J7: =_xlfn.CONCAT(H16:R16,D5:F204,T16) -> "a":["0","0","betrag1","1","","0.13", "0.78", "0.23", "0.04", "0.25", "0.3", "0.35", "0.34", "0.42", "0.39", "0.32", "0.16", "0.48", "0.1", "0.22", "0.3", "0.46", "0.14", "0.22", "0.45", "", "", "", "", "", "", "", "", "", "", "", "", "", "", "", "", "", "", "", "", "", "", "", "", "", "", "", "", "", "", "", "", "", "", "", "", "", "", "", "", "", "", "", "", "", "", "", "", "", "", "", "", "", "", "", "", "", "", "", "", "", "", "", "", "", "", "", "", "", "", "", "", "", "", "", "", "", "", "", "", "", "", "", "", "", "", "", "", "", "", "", "", "", "", "", "", "", "", "", "", "", "", "", "", "", "", "", "", "", "", "", "", "", "", "", "", "", "", "", "", "", "", "", "", "", "", "", "", "", "", "", "", "", "", "", "", "", "", "", "", "", "", "", "", "", "", "", "", "", "", "", "", "", "", "", "", "", "", "", "", "", "", "", "", "", "", "", "", "", "", "", "", "", "", "", "", "", "", "", ""] | AE7: 3 | AF7: 3 | AG7: 0.23 | AH7: 1 | AJ7: 0.1354957442 | AK7: 0.4725042558 | AL7: -0.03300851152 | AM7: 0.6410085115 | AN7: -0.2015127673 | AO7: 0.8095127673 | AP7: 0.304 | AR7: 0 | AS7: 0 | AW7: -4 | AX7: -0.370017023 | AY7: 3 | AZ7: 6 | BA7: =BA6 -> -0.7070255346 | BD7: 3 | BE7: 0.13 | BF7: =IF(B7="","",1+BF6) -> 3 | BG7: 0.1508920835 | BH7: 0.8491079165 | BI7: 0.1772768761 | BJ7: -18.10616437 | BK7: -1.115337358 | BN7: =Standardabweichung*BO7+fxds -> -0.2015127673 | BO7: -3
A8: 0 | B8: 0.04 | C8: =IF(input!C8="","",input!C8) -> 0.04 | D8: " | E8: 0.04 | F8: ", | AE8: 4 | AF8: 4 | AG8: 0.04 | AH8: 1 | AJ8: 0.1354957442 | AK8: 0.4725042558 | AL8: -0.03300851152 | AM8: 0.6410085115 | AN8: -0.2015127673 | AO8: 0.8095127673 | AP8: 0.304 | AR8: 0 | AS8: 0 | AW8: -2 | AX8: -0.03300851152 | AY8: 3 | AZ8: 6 | BA8: -0.7070255346 | BD8: 4 | BE8: 0.14 | BF8: 4 | BG8: 0.1652097662 | BH8: 0.8347902338 | BI8: 0.1931225508 | BJ8: -24.11478731 | BK8: -0.9101467964
A9: 0 | B9: 0.25 | C9: =IF(input!C9="","",input!C9) -> 0.25 | D9: " | E9: 0.25 | F9: ", | AE9: 5 | AF9: 5 | AG9: 0.25 | AH9: 1 | AJ9: 0.1354957442 | AK9: 0.4725042558 | AL9: -0.03300851152 | AM9: 0.6410085115 | AN9: -0.2015127673 | AO9: 0.8095127673 | AP9: 0.304 | AR9: 0 | AS9: 0 | AW9: -1 | AX9: 0.1354957442 | AY9: 3 | AZ9: 6 | BA9: -0.7070255346 | BD9: 5 | BE9: 0.16 | BF9: 5 | BG9: 0.1963924547 | BH9: 0.8036075453 | BI9: 0.2455973416 | BJ9: -27.28531988 | BK9: -0.7375559799
A10: 0 | B10: 0.3 | C10: =IF(input!C10="","",input!C10) -> 0.3 | D10: " | E10: 0.3 | F10: ", | AE10: 6 | AF10: 6 | AG10: 0.3 | AH10: 1 | AJ10: 0.1354957442 | AK10: 0.4725042558 | AL10: -0.03300851152 | AM10: 0.6410085115 | AN10: -0.2015127673 | AO10: 0.8095127673 | AP10: 0.304 | AR10: 0 | AS10: 0 | AW10: 1 | AX10: 0.4725042558 | AY10: 3 | AZ10: 6 | BA10: -0.7070255346 | BD10: 6 | BE10: 0.22 | BF10: 6 | BG10: 0.3090645205 | BH10: 0.6909354795 | BI10: 0.3048951313 | BJ10: -25.98191875 | BK10: -0.5845898571
A11: 0 | B11: 0.35 | C11: =IF(input!C11="","",input!C11) -> 0.35 | D11: " | E11: 0.35 | F11: ", | AE11: 7 | AF11: 7 | AG11: 0.35 | AH11: 1 | AJ11: 0.1354957442 | AK11: 0.4725042558 | AL11: -0.03300851152 | AM11: 0.6410085115 | AN11: -0.2015127673 | AO11: 0.8095127673 | AP11: 0.304 | AR11: 0 | AS11: 0 | AW11: 2 | AX11: 0.6410085115 | AY11: 3 | AZ11: 6 | BA11: -0.7070255346 | BD11: 7 | BE11: 0.22 | BF11: 7 | BG11: 0.3090645205 | BH11: 0.6909354795 | BI11: 0.3924303983 | BJ11: -27.42481698 | BK11: -0.4442487568
A12: 0 | B12: 0.34 | C12: =IF(input!C12="","",input!C12) -> 0.34 | D12: " | E12: 0.34 | F12: ", | AE12: 8 | AF12: 8 | AG12: 0.34 | AH12: 1 | AJ12: 0.1354957442 | AK12: 0.4725042558 | AL12: -0.03300851152 | AM12: 0.6410085115 | AN12: -0.2015127673 | AO12: 0.8095127673 | AP12: 0.304 | AR12: 0 | AS12: 0 | AW12: 4 | AX12: 0.978017023 | AY12: 3 | AZ12: 6 | BA12: -0.7070255346 | BD12: 8 | BE12: 0.23 | BF12: 8 | BG12: 0.3302735104 | BH12: 0.6697264896 | BI12: 0.4154121645 | BJ12: -29.79477349 | BK12: -0.3121823292
A13: 0 | B13: 0.42 | C13: =IF(input!C13="","",input!C13) -> 0.42 | D13: " | E13: 0.42 | F13: ", | AE13: 9 | AF13: 9 | AG13: 0.42 | AH13: 1 | AJ13: 0.1354957442 | AK13: 0.4725042558 | AL13: -0.03300851152 | AM13: 0.6410085115 | AN13: -0.2015127673 | AO13: 0.8095127673 | AP13: 0.304 | AR13: 0 | AS13: 0 | AW13: 5 | AX13: 1.146521279 | AY13: 3 | AZ13: 6 | BA13: -0.7070255346 | BD13: 9 | BE13: 0.25 | BF13: 9 | BG13: 0.3743072912 | BH13: 0.6256927088 | BI13: 0.4621760431 | BJ13: -29.82628919 | BK13: -0.1853670173
A14: 0 | B14: 0.39 | C14: =IF(input!C14="","",input!C14) -> 0.39 | D14: " | E14: 0.39 | F14: ", | AE14: 10 | AF14: 10 | AG14: 0.39 | AH14: 1 | AJ14: 0.1354957442 | AK14: 0.4725042558 | AL14: -0.03300851152 | AM14: 0.6410085115 | AN14: -0.2015127673 | AO14: 0.8095127673 | AP14: 0.304 | AR14: 0 | AS14: 0 | AW14: 6 | AX14: 1.315025535 | AY14: 3 | AZ14: 6 | BA14: -0.7070255346 | BD14: 10 | BE14: 0.3 | BF14: 10 | BG14: 0.4905306886 | BH14: 0.5094693114 | BI14: 0.5094693114 | BJ14: -26.34640884 | BK14: -0.06147566764
A15: 0 | B15: 0.32 | C15: =IF(input!C15="","",input!C15) -> 0.32 | D15: " | E15: 0.32 | F15: ", | I15: userapiname | K15: userapikey | M15: verteilung | O15: "OGW: | Q15: "UGW: | AE15: 11 | AF15: 11 | AG15: 0.32 | AH15: 1 | AJ15: 0.1354957442 | AK15: 0.4725042558 | AL15: -0.03300851152 | AM15: 0.6410085115 | AN15: -0.2015127673 | AO15: 0.8095127673 | AP15: 0.304 | AR15: 0 | AS15: 0 | AW15: -3 | AX15: -0.2015127673 | AY15: 3 | AZ15: 6 | BA15: -0.7070255346 | BD15: 11 | BE15: 0.3 | BF15: 11 | BG15: 0.4905306886 | BH15: 0.5094693114 | BI15: 0.5094693114 | BJ15: -29.11971503 | BK15: 0.06147566764
A16: 0 | B16: 0.16 | C16: =IF(input!C16="","",input!C16) -> 0.16 | D16: " | E16: 0.16 | F16: ", | H16: "a":[" | I16: =info_setup!C5 -> 0 | J16: "," | K16: =info_setup!C6 -> 0 | L16: "," | M16: betrag1 | N16: "," | O16: =IF(OGW="","",SUBSTITUTE(OGW,",",".")) -> 1 | P16: "," | Q16: =IF(UGW="","",SUBSTITUTE(UGW,",",".")) ->  | R16: ", | T16: ] | AE16: 12 | AF16: 12 | AG16: 0.16 | AH16: 1 | AJ16: 0.1354957442 | AK16: 0.4725042558 | AL16: -0.03300851152 | AM16: 0.6410085115 | AN16: -0.2015127673 | AO16: 0.8095127673 | AP16: 0.304 | AR16: 0 | AS16: 0 | AW16: 3 | AX16: 0.8095127673 | AY16: 3 | AZ16: 6 | BA16: -0.7070255346 | BD16: 12 | BE16: 0.32 | BF16: 12 | BG16: 0.5378239569 | BH16: 0.4621760431 | BI16: 0.6256927088 | BJ16: -25.04975767 | BK16: 0.1853670173
A17: 0 | B17: 0.48 | C17: =IF(input!C17="","",input!C17) -> 0.48 | D17: " | E17: 0.48 | F17: ", | AE17: 13 | AF17: 13 | AG17: 0.48 | AH17: 1 | AJ17: 0.1354957442 | AK17: 0.4725042558 | AL17: -0.03300851152 | AM17: 0.6410085115 | AN17: -0.2015127673 | AO17: 0.8095127673 | AP17: 0.304 | AR17: 0 | AS17: 0 | BD17: 13 | BE17: 0.34 | BF17: 13 | BG17: 0.5845878355 | BH17: 0.4154121645 | BI17: 0.6697264896 | BJ17: -23.44335273 | BK17: 0.3121823292
A18: 0 | B18: 0.1 | C18: =IF(input!C18="","",input!C18) -> 0.1 | D18: " | E18: 0.1 | F18: ", | AE18: 14 | AF18: 14 | AG18: 0.1 | AH18: 1 | AJ18: 0.1354957442 | AK18: 0.4725042558 | AL18: -0.03300851152 | AM18: 0.6410085115 | AN18: -0.2015127673 | AO18: 0.8095127673 | AP18: 0.304 | AR18: 0 | AS18: 0 | AV18: Mittelwert | AW18: =Mittelwert -> 0.304 | AX18: 3 | BD18: 14 | BE18: 0.35 | BF18: 14 | BG18: 0.6075696017 | BH18: 0.3924303983 | BI18: 0.6909354795 | BJ18: -23.43592904 | BK18: 0.4442487568
A19: 0 | B19: 0.22 | C19: =IF(input!C19="","",input!C19) -> 0.22 | D19: " | E19: 0.22 | F19: ", | AE19: 15 | AF19: 15 | AG19: 0.22 | AH19: 1 | AJ19: 0.1354957442 | AK19: 0.4725042558 | AL19: -0.03300851152 | AM19: 0.6410085115 | AN19: -0.2015127673 | AO19: 0.8095127673 | AP19: 0.304 | AR19: 0 | AS19: 0 | AV19: OGW | AW19: =OGW -> 1 | AX19: 3 | BD19: 15 | BE19: 0.39 | BF19: 15 | BG19: 0.6951048687 | BH19: 0.3048951313 | BI19: 0.6909354795 | BJ19: -21.26864021 | BK19: 0.5845898571
A20: 0 | B20: 0.3 | C20: =IF(input!C20="","",input!C20) -> 0.3 | D20: " | E20: 0.3 | F20: ", | H20: ergebnisuservalidieren:user 0 mit cmk in datensatz nicht vorhanden | AE20: 16 | AF20: 16 | AG20: 0.3 | AH20: 1 | AJ20: 0.1354957442 | AK20: 0.4725042558 | AL20: -0.03300851152 | AM20: 0.6410085115 | AN20: -0.2015127673 | AO20: 0.8095127673 | AP20: 0.304 | AR20: 0 | AS20: 0 | AV20: UGW | AW20: =UGW -> 0 | AX20: 3 | BD20: 16 | BE20: 0.42 | BF20: 16 | BG20: 0.7544026584 | BH20: 0.2455973416 | BI20: 0.8036075453 | BJ20: -15.5146717 | BK20: 0.7375559799
A21: 0 | B21: 0.46 | C21: =IF(input!C21="","",input!C21) -> 0.46 | D21: " | E21: 0.46 | F21: ", | H21: nein | I21: =H21 -> nein | AE21: 17 | AF21: 17 | AG21: 0.46 | AH21: 1 | AJ21: 0.1354957442 | AK21: 0.4725042558 | AL21: -0.03300851152 | AM21: 0.6410085115 | AN21: -0.2015127673 | AO21: 0.8095127673 | AP21: 0.304 | AR21: 0 | AS21: 0 | AV21: Sollwert | AW21: =Sollwert -> 20 | AX21: 3 | BD21: 17 | BE21: 0.45 | BF21: 17 | BG21: 0.8068774492 | BH21: 0.1931225508 | BI21: 0.8347902338 | BJ21: -13.04022339 | BK21: 0.9101467964
A22: 0 | B22: 0.14 | C22: =IF(input!C22="","",input!C22) -> 0.14 | D22: " | E22: 0.14 | F22: ", | H22: 0.5187 | I22: =H22 -> 0.5187 | AE22: 18 | AF22: 18 | AG22: 0.14 | AH22: 1 | AJ22: =AJ21 -> 0.1354957442 | AK22: 0.4725042558 | AL22: -0.03300851152 | AM22: 0.6410085115 | AN22: -0.2015127673 | AO22: 0.8095127673 | AP22: 0.304 | AR22: 0 | AS22: 0 | BD22: 18 | BE22: 0.46 | BF22: 18 | BG22: 0.8227231239 | BH22: 0.1772768761 | BI22: 0.8491079165 | BJ22: -12.5546592 | BK22: 1.115337358
A23: 0 | B23: 0.22 | C23: =IF(input!C23="","",input!C23) -> 0.22 | D23: " | E23: 0.22 | F23: ", | H23: betrag1 | I23: betrag1 | R23: =Maßeinheit -> mm | S23: =Merkmal -> Länge | T23: =IF(UGW<>"",six_cmu(Mittelwert,UGW,Standardabweichung),"") ->  | U23: =MEDIAN(xi) -> 0.3 | V23: =IF(UGW<>0,NORMDIST(UGW,Mittelwert,Standardabweichung,1)*1000000,0) -> 0 | W23: =IF(UGW<>"",AR205/S24*1000000,0) -> 0 | AE23: 19 | AF23: 19 | AG23: 0.22 | AH23: 1 | AJ23: 0.1354957442 | AK23: 0.4725042558 | AL23: -0.03300851152 | AM23: 0.6410085115 | AN23: -0.2015127673 | AO23: 0.8095127673 | AP23: 0.304 | AR23: 0 | AS23: 0 | BD23: 19 | BE23: 0.48 | BF23: 19 | BG23: 0.8518692423 | BH23: 0.1481307577 | BI23: 0.8869855808 | BJ23: -10.36920517 | BK23: 1.382994127
A24: 0 | B24: 0.45 | C24: =IF(input!C24="","",input!C24) -> 0.45 | D24: " | E24: 0.45 | F24: ", | H24: 6.08 | I24: 6.08 | R24: =Sollwert -> 20 | S24: =six_a(xi) -> 20 | T24: =IF(OGW<>"",six_cmo(OGW,Mittelwert,Standardabweichung),"") -> 1.376819825 | U24: =Maximum-Minimum -> 0.74 | V24: =IF(OGW<>"",(1-NORMDIST(OGW,Mittelwert,Standardabweichung,1))*1000000,0) -> 18.10194556 | W24: =IF(OGW<>"",AS205/S24*1000000,0) -> 0 | AE24: 20 | AF24: 20 | AG24: 0.45 | AH24: 1 | AJ24: 0.1354957442 | AK24: 0.4725042558 | AL24: -0.03300851152 | AM24: 0.6410085115 | AN24: -0.2015127673 | AO24: 0.8095127673 | AP24: 0.304 | AR24: 0 | AS24: 0 | BD24: 20 | BE24: 0.78 | BF24: 20 | BG24: 0.9976348953 | BH24: 0.002365104749 | BI24: 0.9414106256 | BJ24: -2.447006995 | BK24: 1.820864538
A25: 0 | C25: =IF(input!C25="","",input!C25) ->  | D25: " | F25: ", | H25: 20 | I25: 20 | R25: =UGW -> 0 | S25: =six_m(xi) -> 0.304 | T25: =IF(OR(UGW="",OGW=""),"",six_cm(OGW,UGW,Standardabweichung)) ->  | U25: =MIN(xi) -> 0.04 | V25: =BERPOGW+BERPUGW -> 33 | W25: =W24+W23 -> 0 | AE25: 21 | AF25: 20 | AJ25: 0.1354957442 | AK25: 0.4725042558 | AL25: -0.03300851152 | AM25: 0.6410085115 | AN25: -0.2015127673 | AO25: 0.8095127673 | AP25: 0.304 | AR25: 0 | AS25: 0 | BD25: 21
A26: 0 | C26: =IF(input!C26="","",input!C26) ->  | D26: " | F26: ", | H26: 0.1685042558 | I26: 0.1685042558 | R26: =OGW -> 1 | S26: =six_st(xi) -> 0.1685042558 | T26: =IF(OGW="",CMU,IF(UGW="",CMO,six_ck(CMO,CMU))) ->  | U26: =MAX(xi) -> 0.78 | AE26: 22 | AF26: 20 | AJ26: 0.1354957442 | AK26: 0.4725042558 | AL26: -0.03300851152 | AM26: 0.6410085115 | AN26: -0.2015127673 | AO26: 0.8095127673 | AP26: 0.304 | AR26: 0 | AS26: 0 | BD26: 22
A27: 0 | C27: =IF(input!C27="","",input!C27) ->  | D27: " | F27: ", | H27: 0.304 | I27: 0.304 | K27: normal | S27: Stichprobe chronologisch | T27: OGW | AE27: 23 | AF27: 20 | AJ27: 0.1354957442 | AK27: 0.4725042558 | AL27: -0.03300851152 | AM27: 0.6410085115 | AN27: -0.2015127673 | AO27: 0.8095127673 | AP27: 0.304 | AR27: 0 | AS27: 0 | BD27: 23
A28: 0 | C28: =IF(input!C28="","",input!C28) ->  | D28: " | F28: ", | I28: 0 | K28: betrag1 | S28: Wahrscheinlichkeitsnetz | T28: UGW | AE28: 24 | AF28: 20 | AJ28: 0.1354957442 | AK28: 0.4725042558 | AL28: -0.03300851152 | AM28: 0.6410085115 | AN28: -0.2015127673 | AO28: 0.8095127673 | AP28: 0.304 | AR28: 0 | AS28: 0 | BD28: 24
A29: 0 | C29: =IF(input!C29="","",input!C29) ->  | D29: " | F29: ", | S29: Test auf Normalverteilung (Anderson Darling) | T29: ="+ 3 Sigma" -> + 3 Sigma | AE29: 25 | AF29: 20 | AJ29: 0.1354957442 | AK29: 0.4725042558 | AL29: -0.03300851152 | AM29: 0.6410085115 | AN29: -0.2015127673 | AO29: 0.8095127673 | AP29: 0.304 | AR29: 0 | AS29: 0 | BD29: 25
A30: 0 | C30: =IF(input!C30="","",input!C30) ->  | D30: " | F30: ", | I30: =IF(H30="","",H30) ->  | S30: Prozess- und Maschinenfähigkeit | T30: ="- 3 Sigma" -> - 3 Sigma | AE30: 26 | AF30: 20 | AJ30: 0.1354957442 | AK30: 0.4725042558 | AL30: -0.03300851152 | AM30: 0.6410085115 | AN30: -0.2015127673 | AO30: 0.8095127673 | AP30: 0.304 | AR30: 0 | AS30: 0 | BD30: 26
A31: 0 | C31: =IF(input!C31="","",input!C31) ->  | D31: " | F31: ", | I31: =IF(H31="","",H31) ->  | T31: Mittelwert | AE31: 27 | AF31: 20 | AJ31: 0.1354957442 | AK31: 0.4725042558 | AL31: -0.03300851152 | AM31: 0.6410085115 | AN31: -0.2015127673 | AO31: 0.8095127673 | AP31: 0.304 | AR31: 0 | AS31: 0 | BD31: 27
A32: 0 | C32: =IF(input!C32="","",input!C32) ->  | D32: " | F32: ", | T32: Sollwert | AE32: 28 | AF32: 20 | AJ32: 0.1354957442 | AK32: 0.4725042558 | AL32: -0.03300851152 | AM32: 0.6410085115 | AN32: -0.2015127673 | AO32: 0.8095127673 | AP32: 0.304 | AR32: 0 | AS32: 0 | BD32: 28
A33: 0 | C33: =IF(input!C33="","",input!C33) ->  | D33: " | F33: ", | H33: 1.3308 | I33: 1.3308 | R33: OGW | S33: UGW | T33: =" - 1 Sigma" -> - 1 Sigma | U33: =" + 1 Sigma" -> + 1 Sigma | V33: ="- 2 Sigma" -> - 2 Sigma | W33: =" + 2 Sigma" -> + 2 Sigma | X33: =" - 3 Sigma" -> - 3 Sigma | Y33: =" + 3 Sigma" -> + 3 Sigma | Z33: =" Mittelwert" -> Mittelwert | AE33: 29 | AF33: 20 | AJ33: 0.1354957442 | AK33: 0.4725042558 | AL33: -0.03300851152 | AM33: 0.6410085115 | AN33: -0.2015127673 | AO33: 0.8095127673 | AP33: 0.304 | AR33: 0 | AS33: 0 | BD33: 29
A34: 0 | C34: =IF(input!C34="","",input!C34) ->  | D34: " | F34: ", | H34: 33 | I34: =H34 -> 33 | R34: =IF(OGW<>"","OGW","") -> OGW | S34: =IF(UGW<>"","UGW","") ->  | AE34: 30 | AF34: 20 | AJ34: 0.1354957442 | AK34: 0.4725042558 | AL34: -0.03300851152 | AM34: 0.6410085115 | AN34: -0.2015127673 | AO34: 0.8095127673 | AP34: 0.304 | AR34: 0 | AS34: 0 | BD34: 30
A35: 0 | C35: =IF(input!C35="","",input!C35) ->  | D35: " | F35: ", | H35: 0 | I35: =H35 -> 0 | AE35: 31 | AF35: 20 | AJ35: 0.1354957442 | AK35: 0.4725042558 | AL35: -0.03300851152 | AM35: 0.6410085115 | AN35: -0.2015127673 | AO35: 0.8095127673 | AP35: 0.304 | AR35: 0 | AS35: 0 | BD35: 31
A36: 0 | C36: =IF(input!C36="","",input!C36) ->  | D36: " | F36: ", | H36: platz1:platz1 | I36: =H36/1000000 ->  | AE36: 32 | AF36: 20 | AJ36: 0.1354957442 | AK36: 0.4725042558 | AL36: -0.03300851152 | AM36: 0.6410085115 | AN36: -0.2015127673 | AO36: 0.8095127673 | AP36: 0.304 | AR36: 0 | AS36: 0 | BD36: 32
A37: 0 | C37: =IF(input!C37="","",input!C37) ->  | D37: " | F37: ", | H37: platz2:platz1 | AE37: 33 | AF37: =IF((Anzahl>AE37),AE37,Anzahl) -> 20 | AH37: =IF(OGW="",#N/A,IF(B37<>"",OGW,#N/A)) ->  | AI37: =IF(UGW="",#N/A,IF(B37<>"",UGW,#N/A)) ->  | AJ37: 0.1354957442 | AK37: 0.4725042558 | AL37: -0.03300851152 | AM37: 0.6410085115 | AN37: -0.2015127673 | AO37: 0.8095127673 | AP37: 0.304 | AR37: =IF(AND(B37<>"",B37<UGW),1,0) -> 0 | AS37: =IF(AND(B37<>"",B37>OGW),1,0) -> 0 | BD37: 33 | BE37: =IF(B37="",NA(),SMALL(xi,BF37)) ->  | BG37: =IF(B37="","",NORMSDIST((BE37-fxds)/Standardabweichung)) ->  | BI37: =IF(IF(B37="","",SMALL(BG,BF37))=0,0.0001,IF(B37="","",SMALL(BG,BF37))) ->  | BK37: =IF(B37="",NA(),NORMSINV((BF37-0.3)/(Anzahl+0.4))) -> 
A38: 0 | C38: =IF(input!C38="","",input!C38) ->  | D38: " | F38: ", | H38: platz3:platz1 | AE38: 34 | AF38: 20 | AJ38: =AJ37 -> 0.1354957442 | AK38: 0.4725042558 | AL38: -0.03300851152 | AM38: 0.6410085115 | AN38: -0.2015127673 | AO38: 0.8095127673 | AP38: 0.304 | AR38: 0 | AS38: 0 | BD38: 34
A39: 0 | C39: =IF(input!C39="","",input!C39) ->  | D39: " | F39: ", | H39: 919 | I39: 0.000919 | AE39: 35 | AF39: 20 | AJ39: 0.1354957442 | AK39: 0.4725042558 | AL39: -0.03300851152 | AM39: 0.6410085115 | AN39: -0.2015127673 | AO39: 0.8095127673 | AP39: 0.304 | AR39: 0 | AS39: 0 | BD39: 35
A40: 0 | C40: =IF(input!C40="","",input!C40) ->  | D40: " | F40: ", | H40: 1087963 | I40: 1.087963 | AE40: 36 | AF40: 20 | AJ40: 0.1354957442 | AK40: 0.4725042558 | AL40: -0.03300851152 | AM40: 0.6410085115 | AN40: -0.2015127673 | AO40: 0.8095127673 | AP40: 0.304 | AR40: 0 | AS40: 0 | BD40: 36
A41: 0 | C41: =IF(input!C41="","",input!C41) ->  | D41: " | F41: ", | H41: 9183 | I41: 0.009183 | AE41: 37 | AF41: 20 | AJ41: 0.1354957442 | AK41: 0.4725042558 | AL41: -0.03300851152 | AM41: 0.6410085115 | AN41: -0.2015127673 | AO41: 0.8095127673 | AP41: 0.304 | AR41: 0 | AS41: 0 | BD41: 37
A42: 0 | C42: =IF(input!C42="","",input!C42) ->  | D42: " | F42: ", | H42: 1090680 | I42: 1.09068 | AE42: 38 | AF42: 20 | AJ42: 0.1354957442 | AK42: 0.4725042558 | AL42: -0.03300851152 | AM42: 0.6410085115 | AN42: -0.2015127673 | AO42: 0.8095127673 | AP42: 0.304 | AR42: 0 | AS42: 0 | BD42: 38
A43: 0 | C43: =IF(input!C43="","",input!C43) ->  | D43: " | F43: ", | H43: 22860 | I43: 0.02286 | AE43: 39 | AF43: 20 | AJ43: 0.1354957442 | AK43: 0.4725042558 | AL43: -0.03300851152 | AM43: 0.6410085115 | AN43: -0.2015127673 | AO43: 0.8095127673 | AP43: 0.304 | AR43: 0 | AS43: 0 | BD43: 39
A44: 0 | C44: =IF(input!C44="","",input!C44) ->  | D44: " | F44: ", | H44: 1104876 | I44: 1.104876 | AE44: 40 | AF44: 20 | AJ44: 0.1354957442 | AK44: 0.4725042558 | AL44: -0.03300851152 | AM44: 0.6410085115 | AN44: -0.2015127673 | AO44: 0.8095127673 | AP44: 0.304 | AR44: 0 | AS44: 0 | BD44: 40
A45: 0 | C45: =IF(input!C45="","",input!C45) ->  | D45: " | F45: ", | H45: 45055 | I45: 0.045055 | AE45: 41 | AF45: 20 | AJ45: 0.1354957442 | AK45: 0.4725042558 | AL45: -0.03300851152 | AM45: 0.6410085115 | AN45: -0.2015127673 | AO45: 0.8095127673 | AP45: 0.304 | AR45: 0 | AS45: 0 | BD45: 41
A46: 0 | C46: =IF(input!C46="","",input!C46) ->  | D46: " | F46: ", | H46: 1152882 | I46: 1.152882 | AE46: 42 | AF46: 20 | AJ46: 0.1354957442 | AK46: 0.4725042558 | AL46: -0.03300851152 | AM46: 0.6410085115 | AN46: -0.2015127673 | AO46: 0.8095127673 | AP46: 0.304 | AR46: 0 | AS46: 0 | BD46: 42
A47: 0 | C47: =IF(input!C47="","",input!C47) ->  | D47: " | F47: ", | H47: 85844 | I47: 0.085844 | AE47: 43 | AF47: 20 | AJ47: 0.1354957442 | AK47: 0.4725042558 | AL47: -0.03300851152 | AM47: 0.6410085115 | AN47: -0.2015127673 | AO47: 0.8095127673 | AP47: 0.304 | AR47: 0 | AS47: 0 | BD47: 43
A48: 0 | C48: =IF(input!C48="","",input!C48) ->  | D48: " | F48: ", | H48: 1312864 | I48: 1.312864 | AE48: 44 | AF48: 20 | AJ48: 0.1354957442 | AK48: 0.4725042558 | AL48: -0.03300851152 | AM48: 0.6410085115 | AN48: -0.2015127673 | AO48: 0.8095127673 | AP48: 0.304 | AR48: 0 | AS48: 0 | BD48: 44
A49: 0 | C49: =IF(input!C49="","",input!C49) ->  | D49: " | F49: ", | H49: 152527 | I49: 0.152527 | AE49: 45 | AF49: 20 | AJ49: 0.1354957442 | AK49: 0.4725042558 | AL49: -0.03300851152 | AM49: 0.6410085115 | AN49: -0.2015127673 | AO49: 0.8095127673 | AP49: 0.304 | AR49: 0 | AS49: 0 | BD49: 45
A50: 0 | C50: =IF(input!C50="","",input!C50) ->  | D50: " | F50: ", | H50: 1702119 | I50: 1.702119 | AE50: 46 | AF50: 20 | AJ50: 0.1354957442 | AK50: 0.4725042558 | AL50: -0.03300851152 | AM50: 0.6410085115 | AN50: -0.2015127673 | AO50: 0.8095127673 | AP50: 0.304 | AR50: 0 | AS50: 0 | BD50: 46
A51: 0 | C51: =IF(input!C51="","",input!C51) ->  | D51: " | F51: ", | H51: 206126 | I51: 0.206126 | AE51: 47 | AF51: 20 | AJ51: 0.1354957442 | AK51: 0.4725042558 | AL51: -0.03300851152 | AM51: 0.6410085115 | AN51: -0.2015127673 | AO51: 0.8095127673 | AP51: 0.304 | AR51: 0 | AS51: 0 | BD51: 47
A52: 0 | C52: =IF(input!C52="","",input!C52) ->  | D52: " | F52: ", | H52: 2019645 | I52: 2.019645 | AE52: 48 | AF52: 20 | AJ52: 0.1354957442 | AK52: 0.4725042558 | AL52: -0.03300851152 | AM52: 0.6410085115 | AN52: -0.2015127673 | AO52: 0.8095127673 | AP52: 0.304 | AR52: 0 | AS52: 0 | BD52: 48
A53: 0 | C53: =IF(input!C53="","",input!C53) ->  | D53: " | F53: ", | H53: 253164 | I53: 0.253164 | AE53: 49 | AF53: 20 | AJ53: 0.1354957442 | AK53: 0.4725042558 | AL53: -0.03300851152 | AM53: 0.6410085115 | AN53: -0.2015127673 | AO53: 0.8095127673 | AP53: 0.304 | AR53: 0 | AS53: 0 | BD53: 49
A54: 0 | C54: =IF(input!C54="","",input!C54) ->  | D54: " | F54: ", | H54: 2213380 | I54: 2.21338 | AE54: 50 | AF54: 20 | AJ54: =AJ53 -> 0.1354957442 | AK54: 0.4725042558 | AL54: -0.03300851152 | AM54: 0.6410085115 | AN54: -0.2015127673 | AO54: 0.8095127673 | AP54: 0.304 | AR54: 0 | AS54: 0 | BD54: 50
A55: 0 | C55: =IF(input!F5="","",input!F5) ->  | D55: " | F55: ", | H55: 297513 | I55: 0.297513 | AE55: 51 | AF55: 20 | AJ55: 0.1354957442 | AK55: 0.4725042558 | AL55: -0.03300851152 | AM55: 0.6410085115 | AN55: -0.2015127673 | AO55: 0.8095127673 | AP55: 0.304 | AR55: 0 | AS55: 0 | BD55: 51
A56: 0 | C56: =IF(input!F6="","",input!F6) ->  | D56: " | F56: ", | H56: 2274185 | I56: 2.274185 | AE56: 52 | AF56: 20 | AJ56: 0.1354957442 | AK56: 0.4725042558 | AL56: -0.03300851152 | AM56: 0.6410085115 | AN56: -0.2015127673 | AO56: 0.8095127673 | AP56: 0.304 | AR56: 0 | AS56: 0 | BD56: 52
A57: 0 | C57: =IF(input!F7="","",input!F7) ->  | D57: " | F57: ", | H57: 342006 | I57: 0.342006 | AE57: 53 | AF57: 20 | AJ57: 0.1354957442 | AK57: 0.4725042558 | AL57: -0.03300851152 | AM57: 0.6410085115 | AN57: -0.2015127673 | AO57: 0.8095127673 | AP57: 0.304 | AR57: 0 | AS57: 0 | BD57: 53
A58: 0 | C58: =IF(input!F8="","",input!F8) ->  | D58: " | F58: ", | H58: 2197989 | I58: 2.197989 | AE58: 54 | AF58: 20 | AJ58: 0.1354957442 | AK58: 0.4725042558 | AL58: -0.03300851152 | AM58: 0.6410085115 | AN58: -0.2015127673 | AO58: 0.8095127673 | AP58: 0.304 | AR58: 0 | AS58: 0 | BD58: 54
A59: 0 | C59: =IF(input!F9="","",input!F9) ->  | D59: " | F59: ", | H59: 389673 | I59: 0.389673 | AE59: 55 | AF59: 20 | AJ59: 0.1354957442 | AK59: 0.4725042558 | AL59: -0.03300851152 | AM59: 0.6410085115 | AN59: -0.2015127673 | AO59: 0.8095127673 | AP59: 0.304 | AR59: 0 | AS59: 0 | BD59: 55
A60: 0 | C60: =IF(input!F10="","",input!F10) ->  | D60: " | F60: ", | H60: 1976475 | I60: 1.976475 | AE60: 56 | AF60: 20 | AJ60: 0.1354957442 | AK60: 0.4725042558 | AL60: -0.03300851152 | AM60: 0.6410085115 | AN60: -0.2015127673 | AO60: 0.8095127673 | AP60: 0.304 | AR60: 0 | AS60: 0 | BD60: 56
A61: 0 | C61: =IF(input!F11="","",input!F11) ->  | D61: " | F61: ", | H61: 445488 | I61: 0.445488 | AE61: 57 | AF61: 20 | AJ61: 0.1354957442 | AK61: 0.4725042558 | AL61: -0.03300851152 | AM61: 0.6410085115 | AN61: -0.2015127673 | AO61: 0.8095127673 | AP61: 0.304 | AR61: 0 | AS61: 0 | BD61: 57
A62: 0 | C62: =IF(input!F12="","",input!F12) ->  | D62: " | F62: ", | H62: 1590923 | I62: 1.590923 | AE62: 58 | AF62: 20 | AJ62: 0.1354957442 | AK62: 0.4725042558 | AL62: -0.03300851152 | AM62: 0.6410085115 | AN62: -0.2015127673 | AO62: 0.8095127673 | AP62: 0.304 | AR62: 0 | AS62: 0 | BD62: 58
A63: 0 | C63: =IF(input!F13="","",input!F13) ->  | D63: " | F63: ", | H63: 522910 | I63: 0.52291 | AE63: 59 | AF63: 20 | AJ63: 0.1354957442 | AK63: 0.4725042558 | AL63: -0.03300851152 | AM63: 0.6410085115 | AN63: -0.2015127673 | AO63: 0.8095127673 | AP63: 0.304 | AR63: 0 | AS63: 0 | BD63: 59
A64: 0 | C64: =IF(input!F14="","",input!F14) ->  | D64: " | F64: ", | H64: 997170 | I64: 0.99717 | Q64: 1 | R64: =Minimum -> 0.04 | S64: =R64+U64 -> 0.077 | T64: =(S64+R64)/2 -> 0.0585 | U64: =Spannweite/AnzahlKlassenHistogramm -> 0.037 | V64: =FREQUENCY(xi,S64) -> 1 | W64: =$V64/Anzahl -> 0.05 | X64: =V64 -> 1 | Y64: =X64/Anzahl -> 0.05 | Z64: =Y64/U64 -> 1.351351351 | AE64: 60 | AF64: 20 | AJ64: 0.1354957442 | AK64: 0.4725042558 | AL64: -0.03300851152 | AM64: 0.6410085115 | AN64: -0.2015127673 | AO64: 0.8095127673 | AP64: 0.304 | AR64: 0 | AS64: 0 | BD64: 60
A65: 0 | C65: =IF(input!F15="","",input!F15) ->  | D65: " | F65: ", | H65: 586851 | I65: 0.586851 | Q65: 2 | R65: =IF(AnzahlKlassenHistogramm<Q65,R64,R64+U65+0.00000001) -> 0.07700001 | S65: =R65+U65 -> 0.11400001 | T65: =(S65+R65)/2 -> 0.09550001 | U65: 0.037 | V65: 2 | W65: 0.1 | X65: =V65-V64 -> 1 | Y65: 0.05 | Z65: =Y65/U65 -> 1.351351351 | AE65: 61 | AF65: 20 | AJ65: 0.1354957442 | AK65: 0.4725042558 | AL65: -0.03300851152 | AM65: 0.6410085115 | AN65: -0.2015127673 | AO65: 0.8095127673 | AP65: 0.304 | AR65: 0 | AS65: 0 | BD65: 61
A66: 0 | C66: =IF(input!F16="","",input!F16) ->  | D66: " | F66: ", | H66: 585996 | I66: 0.585996 | Q66: 3 | R66: 0.11400002 | S66: =R66+U66 -> 0.15100002 | T66: =(S66+R66)/2 -> 0.13250002 | U66: 0.037 | V66: 4 | W66: 0.2 | X66: =V66-V65 -> 2 | Y66: 0.1 | Z66: 2.702702703 | AE66: 62 | AF66: 20 | AJ66: 0.1354957442 | AK66: 0.4725042558 | AL66: -0.03300851152 | AM66: 0.6410085115 | AN66: -0.2015127673 | AO66: 0.8095127673 | AP66: 0.304 | AR66: 0 | AS66: 0 | BD66: 62
A67: 0 | C67: =IF(input!F17="","",input!F17) ->  | D67: " | F67: ", | H67: 642311 | I67: 0.642311 | Q67: 4 | R67: 0.15100003 | S67: 0.18800003 | T67: 0.16950003 | U67: 0.037 | V67: 5 | W67: 0.25 | X67: 1 | Y67: 0.05 | Z67: 1.351351351 | AE67: 63 | AF67: 20 | AJ67: 0.1354957442 | AK67: 0.4725042558 | AL67: -0.03300851152 | AM67: 0.6410085115 | AN67: -0.2015127673 | AO67: 0.8095127673 | AP67: 0.304 | AR67: 0 | AS67: 0 | BD67: 63
A68: 0 | C68: =IF(input!F18="","",input!F18) ->  | D68: " | F68: ", | H68: 332071 | I68: 0.332071 | Q68: 5 | R68: 0.18800004 | S68: 0.22500004 | T68: 0.20650004 | U68: 0.037 | V68: 7 | W68: 0.35 | X68: 2 | Y68: 0.1 | Z68: 2.702702703 | AE68: 64 | AF68: 20 | AJ68: 0.1354957442 | AK68: 0.4725042558 | AL68: -0.03300851152 | AM68: 0.6410085115 | AN68: -0.2015127673 | AO68: 0.8095127673 | AP68: 0.304 | AR68: 0 | AS68: 0 | BD68: 64
A69: 0 | C69: =IF(input!F19="","",input!F19) ->  | D69: " | F69: ", | H69: 706795 | I69: 0.706795 | Q69: 6 | R69: 0.22500005 | S69: 0.26200005 | T69: 0.24350005 | U69: 0.037 | V69: 9 | W69: 0.45 | X69: 2 | Y69: 0.1 | Z69: 2.702702703 | AE69: 65 | AF69: =IF((Anzahl>AE69),AE69,Anzahl) -> 20 | AH69: =IF(OGW="",#N/A,IF(B69<>"",OGW,#N/A)) ->  | AI69: =IF(UGW="",#N/A,IF(B69<>"",UGW,#N/A)) ->  | AJ69: 0.1354957442 | AK69: 0.4725042558 | AL69: -0.03300851152 | AM69: 0.6410085115 | AN69: -0.2015127673 | AO69: 0.8095127673 | AP69: 0.304 | AR69: =IF(AND(B69<>"",B69<UGW),1,0) -> 0 | AS69: =IF(AND(B69<>"",B69>OGW),1,0) -> 0 | BD69: 65 | BE69: =IF(B69="",NA(),SMALL(xi,BF69)) ->  | BG69: =IF(B69="","",NORMSDIST((BE69-fxds)/Standardabweichung)) ->  | BI69: =IF(IF(B69="","",SMALL(BG,BF69))=0,0.0001,IF(B69="","",SMALL(BG,BF69))) ->  | BK69: =IF(B69="",NA(),NORMSINV((BF69-0.3)/(Anzahl+0.4))) -> 
A70: =IF(B70=C70,0,1) -> 0 | C70: =IF(input!F20="","",input!F20) ->  | D70: " | E70: =SUBSTITUTE(C70,",",".") ->  | F70: ", | H70: 151430 | I70: 0.15143 | Q70: 7 | R70: 0.26200006 | S70: 0.29900006 | T70: 0.28050006 | U70: 0.037 | V70: 9 | W70: 0.45 | X70: 0 | Y70: 0 | Z70: 0 | AE70: 66 | AF70: 20 | AG70: =IF(B70<>"",B70,#N/A) ->  | AJ70: =AJ69 -> 0.1354957442 | AK70: 0.4725042558 | AL70: -0.03300851152 | AM70: 0.6410085115 | AN70: -0.2015127673 | AO70: 0.8095127673 | AP70: 0.304 | AR70: 0 | AS70: 0 | BD70: 66 | BH70: =IF(B70="","",1-BG70) ->  | BJ70: =IF(B70="","",(2*BF70-1)*(LN(BI70)+LN(BG70))) -> 
A71: 0 | C71: =IF(input!F21="","",input!F21) ->  | D71: " | F71: ", | H71: 841240 | I71: 0.84124 | Q71: 8 | R71: 0.29900007 | S71: 0.33600007 | T71: 0.31750007 | U71: 0.037 | V71: 12 | W71: 0.6 | X71: 3 | Y71: 0.15 | Z71: 4.054054054 | AE71: 67 | AF71: 20 | AJ71: 0.1354957442 | AK71: 0.4725042558 | AL71: -0.03300851152 | AM71: 0.6410085115 | AN71: -0.2015127673 | AO71: 0.8095127673 | AP71: 0.304 | AR71: 0 | AS71: 0 | BD71: 67 | BF71: =IF(B71="","",1+BF70) -> 
A72: 0 | C72: =IF(input!F22="","",input!F22) ->  | D72: " | F72: ", | H72: 19130 | I72: 0.01913 | Q72: 9 | R72: 0.33600008 | S72: 0.37300008 | T72: 0.35450008 | U72: 0.037 | V72: 14 | W72: 0.7 | X72: 2 | Y72: 0.1 | Z72: 2.702702703 | AE72: 68 | AF72: 20 | AJ72: 0.1354957442 | AK72: 0.4725042558 | AL72: -0.03300851152 | AM72: 0.6410085115 | AN72: -0.2015127673 | AO72: 0.8095127673 | AP72: 0.304 | AR72: 0 | AS72: 0 | BD72: 68
A73: 0 | C73: =IF(input!F23="","",input!F23) ->  | D73: " | F73: ", | H73: 0 | I73: 0 | Q73: 10 | R73: 0.37300009 | S73: 0.41000009 | T73: 0.39150009 | U73: 0.037 | V73: 15 | W73: 0.75 | X73: 1 | Y73: 0.05 | Z73: 1.351351351 | AE73: 69 | AF73: 20 | AJ73: 0.1354957442 | AK73: 0.4725042558 | AL73: -0.03300851152 | AM73: 0.6410085115 | AN73: -0.2015127673 | AO73: 0.8095127673 | AP73: 0.304 | AR73: 0 | AS73: 0 | BD73: 69
A74: 0 | C74: =IF(input!F24="","",input!F24) ->  | D74: " | F74: ", | Q74: 11 | R74: 0.4100001 | S74: 0.4470001 | T74: 0.4285001 | U74: 0.037 | V74: 16 | W74: 0.8 | X74: 1 | Y74: 0.05 | Z74: 1.351351351 | AE74: 70 | AF74: 20 | AJ74: 0.1354957442 | AK74: 0.4725042558 | AL74: -0.03300851152 | AM74: 0.6410085115 | AN74: -0.2015127673 | AO74: 0.8095127673 | AP74: 0.304 | AR74: 0 | AS74: 0 | BD74: 70
A75: 0 | C75: =IF(input!F25="","",input!F25) ->  | D75: " | F75: ", | Q75: 12 | R75: 0.44700011 | S75: 0.48400011 | T75: 0.46550011 | U75: 0.037 | V75: 19 | W75: 0.95 | X75: 3 | Y75: 0.15 | Z75: 4.054054054 | AE75: 71 | AF75: 20 | AJ75: 0.1354957442 | AK75: 0.4725042558 | AL75: -0.03300851152 | AM75: 0.6410085115 | AN75: -0.2015127673 | AO75: 0.8095127673 | AP75: 0.304 | AR75: 0 | AS75: 0 | BD75: 71
A76: 0 | C76: =IF(input!F26="","",input!F26) ->  | D76: " | F76: ", | Q76: 13 | R76: 0.48400012 | S76: 0.52100012 | T76: 0.50250012 | U76: 0.037 | V76: 19 | W76: 0.95 | X76: 0 | Y76: 0 | Z76: 0 | AE76: 72 | AF76: 20 | AJ76: 0.1354957442 | AK76: 0.4725042558 | AL76: -0.03300851152 | AM76: 0.6410085115 | AN76: -0.2015127673 | AO76: 0.8095127673 | AP76: 0.304 | AR76: 0 | AS76: 0 | BD76: 72
A77: 0 | C77: =IF(input!F27="","",input!F27) ->  | D77: " | F77: ", | Q77: 14 | R77: 0.52100013 | S77: 0.55800013 | T77: 0.53950013 | U77: 0.037 | V77: 19 | W77: 0.95 | X77: 0 | Y77: 0 | Z77: 0 | AE77: 73 | AF77: 20 | AJ77: 0.1354957442 | AK77: 0.4725042558 | AL77: -0.03300851152 | AM77: 0.6410085115 | AN77: -0.2015127673 | AO77: 0.8095127673 | AP77: 0.304 | AR77: 0 | AS77: 0 | BD77: 73
A78: 0 | C78: =IF(input!F28="","",input!F28) ->  | D78: " | F78: ", | Q78: 15 | R78: 0.55800014 | S78: 0.59500014 | T78: 0.57650014 | U78: 0.037 | V78: 19 | W78: 0.95 | X78: 0 | Y78: 0 | Z78: 0 | AE78: 74 | AF78: 20 | AJ78: 0.1354957442 | AK78: 0.4725042558 | AL78: -0.03300851152 | AM78: 0.6410085115 | AN78: -0.2015127673 | AO78: 0.8095127673 | AP78: 0.304 | AR78: 0 | AS78: 0 | BD78: 74
A79: 0 | C79: =IF(input!F29="","",input!F29) ->  | D79: " | F79: ", | Q79: 16 | R79: 0.59500015 | S79: 0.63200015 | T79: 0.61350015 | U79: 0.037 | V79: 19 | W79: 0.95 | X79: 0 | Y79: 0 | Z79: 0 | AE79: 75 | AF79: 20 | AJ79: 0.1354957442 | AK79: 0.4725042558 | AL79: -0.03300851152 | AM79: 0.6410085115 | AN79: -0.2015127673 | AO79: 0.8095127673 | AP79: 0.304 | AR79: 0 | AS79: 0 | BD79: 75
A80: 0 | C80: =IF(input!F30="","",input!F30) ->  | D80: " | F80: ", | Q80: 17 | R80: 0.63200016 | S80: 0.66900016 | T80: 0.65050016 | U80: 0.037 | V80: 19 | W80: 0.95 | X80: 0 | Y80: 0 | Z80: 0 | AE80: 76 | AF80: 20 | AJ80: 0.1354957442 | AK80: 0.4725042558 | AL80: -0.03300851152 | AM80: 0.6410085115 | AN80: -0.2015127673 | AO80: 0.8095127673 | AP80: 0.304 | AR80: 0 | AS80: 0 | BD80: 76
A81: 0 | C81: =IF(input!F31="","",input!F31) ->  | D81: " | F81: ", | Q81: 18 | R81: 0.66900017 | S81: 0.70600017 | T81: 0.68750017 | U81: 0.037 | V81: 19 | W81: 0.95 | X81: 0 | Y81: 0 | Z81: 0 | AE81: 77 | AF81: 20 | AJ81: 0.1354957442 | AK81: 0.4725042558 | AL81: -0.03300851152 | AM81: 0.6410085115 | AN81: -0.2015127673 | AO81: 0.8095127673 | AP81: 0.304 | AR81: 0 | AS81: 0 | BD81: 77
A82: 0 | C82: =IF(input!F32="","",input!F32) ->  | D82: " | F82: ", | Q82: 19 | R82: 0.70600018 | S82: 0.74300018 | T82: 0.72450018 | U82: 0.037 | V82: 19 | W82: 0.95 | X82: 0 | Y82: 0 | Z82: 0 | AE82: 78 | AF82: 20 | AJ82: 0.1354957442 | AK82: 0.4725042558 | AL82: -0.03300851152 | AM82: 0.6410085115 | AN82: -0.2015127673 | AO82: 0.8095127673 | AP82: 0.304 | AR82: 0 | AS82: 0 | BD82: 78
A83: 0 | C83: =IF(input!F33="","",input!F33) ->  | D83: " | F83: ", | Q83: 20 | R83: 0.74300019 | S83: 0.78000019 | T83: 0.76150019 | U83: 0.037 | V83: 20 | W83: 1 | X83: 1 | Y83: 0.05 | Z83: 1.351351351 | AE83: 79 | AF83: 20 | AJ83: 0.1354957442 | AK83: 0.4725042558 | AL83: -0.03300851152 | AM83: 0.6410085115 | AN83: -0.2015127673 | AO83: 0.8095127673 | AP83: 0.304 | AR83: 0 | AS83: 0 | BD83: 79
A84: 0 | C84: =IF(input!F34="","",input!F34) ->  | D84: " | F84: ", | AE84: 80 | AF84: 20 | AJ84: 0.1354957442 | AK84: 0.4725042558 | AL84: -0.03300851152 | AM84: 0.6410085115 | AN84: -0.2015127673 | AO84: 0.8095127673 | AP84: 0.304 | AR84: 0 | AS84: 0 | BD84: 80
A85: 0 | C85: =IF(input!F35="","",input!F35) ->  | D85: " | F85: ", | AE85: 81 | AF85: 20 | AJ85: 0.1354957442 | AK85: 0.4725042558 | AL85: -0.03300851152 | AM85: 0.6410085115 | AN85: -0.2015127673 | AO85: 0.8095127673 | AP85: 0.304 | AR85: 0 | AS85: 0 | BD85: 81
A86: 0 | C86: =IF(input!F36="","",input!F36) ->  | D86: " | F86: ", | AE86: 82 | AF86: 20 | AJ86: =AJ85 -> 0.1354957442 | AK86: 0.4725042558 | AL86: -0.03300851152 | AM86: 0.6410085115 | AN86: -0.2015127673 | AO86: 0.8095127673 | AP86: 0.304 | AR86: 0 | AS86: 0 | BD86: 82
A87: 0 | C87: =IF(input!F37="","",input!F37) ->  | D87: " | F87: ", | S87: =I39 -> 0.000919 | T87: =I40 -> 1.087963 | W87: =IF(OGW<>"",OGW,#N/A) -> 1 | X87: =MAX(Häufigkeitsdichte)*1.05 -> 4.256756757 | AE87: 83 | AF87: 20 | AJ87: 0.1354957442 | AK87: 0.4725042558 | AL87: -0.03300851152 | AM87: 0.6410085115 | AN87: -0.2015127673 | AO87: 0.8095127673 | AP87: 0.304 | AR87: 0 | AS87: 0 | BD87: 83
A88: 0 | C88: =IF(input!F38="","",input!F38) ->  | D88: " | F88: ", | S88: =I41 -> 0.009183 | T88: =I42 -> 1.09068 | W88: =IF(UGW<>"",UGW,#N/A) ->  | X88: 4.256756757 | AE88: 84 | AF88: 20 | AJ88: 0.1354957442 | AK88: 0.4725042558 | AL88: -0.03300851152 | AM88: 0.6410085115 | AN88: -0.2015127673 | AO88: 0.8095127673 | AP88: 0.304 | AR88: 0 | AS88: 0 | BD88: 84
A89: 0 | C89: =IF(input!F39="","",input!F39) ->  | D89: " | F89: ", | S89: =I43 -> 0.02286 | T89: =I44 -> 1.104876 | W89: =fxds+3*Standardabweichung -> 0.8095127673 | X89: 4.256756757 | AE89: 85 | AF89: 20 | AJ89: 0.1354957442 | AK89: 0.4725042558 | AL89: -0.03300851152 | AM89: 0.6410085115 | AN89: -0.2015127673 | AO89: 0.8095127673 | AP89: 0.304 | AR89: 0 | AS89: 0 | BD89: 85
A90: 0 | C90: =IF(input!F40="","",input!F40) ->  | D90: " | F90: ", | S90: =I45 -> 0.045055 | T90: =I46 -> 1.152882 | W90: =fxds-3*Standardabweichung -> -0.2015127673 | X90: 4.256756757 | AE90: 86 | AF90: 20 | AJ90: 0.1354957442 | AK90: 0.4725042558 | AL90: -0.03300851152 | AM90: 0.6410085115 | AN90: -0.2015127673 | AO90: 0.8095127673 | AP90: 0.304 | AR90: 0 | AS90: 0 | BD90: 86
A91: 0 | C91: =IF(input!F41="","",input!F41) ->  | D91: " | F91: ", | S91: =I47 -> 0.085844 | T91: =I48 -> 1.312864 | W91: =fxds -> 0.304 | X91: 4.256756757 | AE91: 87 | AF91: 20 | AJ91: 0.1354957442 | AK91: 0.4725042558 | AL91: -0.03300851152 | AM91: 0.6410085115 | AN91: -0.2015127673 | AO91: 0.8095127673 | AP91: 0.304 | AR91: 0 | AS91: 0 | BD91: 87
A92: 0 | C92: =IF(input!F42="","",input!F42) ->  | D92: " | F92: ", | S92: =I49 -> 0.152527 | T92: =I50 -> 1.702119 | W92: =Sollwert -> 20 | X92: 4.256756757 | AE92: 88 | AF92: 20 | AJ92: 0.1354957442 | AK92: 0.4725042558 | AL92: -0.03300851152 | AM92: 0.6410085115 | AN92: -0.2015127673 | AO92: 0.8095127673 | AP92: 0.304 | AR92: 0 | AS92: 0 | BD92: 88
A93: 0 | C93: =IF(input!F43="","",input!F43) ->  | D93: " | F93: ", | S93: =I51 -> 0.206126 | T93: =I52 -> 2.019645 | AE93: 89 | AF93: 20 | AJ93: 0.1354957442 | AK93: 0.4725042558 | AL93: -0.03300851152 | AM93: 0.6410085115 | AN93: -0.2015127673 | AO93: 0.8095127673 | AP93: 0.304 | AR93: 0 | AS93: 0 | BD93: 89
A94: 0 | C94: =IF(input!F44="","",input!F44) ->  | D94: " | F94: ", | S94: =I53 -> 0.253164 | T94: =I54 -> 2.21338 | AE94: 90 | AF94: 20 | AJ94: 0.1354957442 | AK94: 0.4725042558 | AL94: -0.03300851152 | AM94: 0.6410085115 | AN94: -0.2015127673 | AO94: 0.8095127673 | AP94: 0.304 | AR94: 0 | AS94: 0 | BD94: 90
A95: 0 | C95: =IF(input!F45="","",input!F45) ->  | D95: " | F95: ", | S95: =I55 -> 0.297513 | T95: =I56 -> 2.274185 | AE95: 91 | AF95: 20 | AJ95: 0.1354957442 | AK95: 0.4725042558 | AL95: -0.03300851152 | AM95: 0.6410085115 | AN95: -0.2015127673 | AO95: 0.8095127673 | AP95: 0.304 | AR95: 0 | AS95: 0 | BD95: 91
A96: 0 | C96: =IF(input!F46="","",input!F46) ->  | D96: " | F96: ", | S96: =I57 -> 0.342006 | T96: =I58 -> 2.197989 | AE96: 92 | AF96: 20 | AJ96: 0.1354957442 | AK96: 0.4725042558 | AL96: -0.03300851152 | AM96: 0.6410085115 | AN96: -0.2015127673 | AO96: 0.8095127673 | AP96: 0.304 | AR96: 0 | AS96: 0 | BD96: 92
A97: 0 | C97: =IF(input!F47="","",input!F47) ->  | D97: " | F97: ", | S97: =I59 -> 0.389673 | T97: =I60 -> 1.976475 | AE97: 93 | AF97: 20 | AJ97: 0.1354957442 | AK97: 0.4725042558 | AL97: -0.03300851152 | AM97: 0.6410085115 | AN97: -0.2015127673 | AO97: 0.8095127673 | AP97: 0.304 | AR97: 0 | AS97: 0 | BD97: 93
A98: 0 | C98: =IF(input!F48="","",input!F48) ->  | D98: " | F98: ", | S98: =I61 -> 0.445488 | T98: =I62 -> 1.590923 | AE98: 94 | AF98: 20 | AJ98: 0.1354957442 | AK98: 0.4725042558 | AL98: -0.03300851152 | AM98: 0.6410085115 | AN98: -0.2015127673 | AO98: 0.8095127673 | AP98: 0.304 | AR98: 0 | AS98: 0 | BD98: 94
A99: 0 | C99: =IF(input!F49="","",input!F49) ->  | D99: " | F99: ", | S99: =I63 -> 0.52291 | T99: =I64 -> 0.99717 | AE99: 95 | AF99: 20 | AJ99: 0.1354957442 | AK99: 0.4725042558 | AL99: -0.03300851152 | AM99: 0.6410085115 | AN99: -0.2015127673 | AO99: 0.8095127673 | AP99: 0.304 | AR99: 0 | AS99: 0 | BD99: 95
A100: 0 | C100: =IF(input!F50="","",input!F50) ->  | D100: " | F100: ", | S100: =I65 -> 0.586851 | T100: =I66 -> 0.585996 | AE100: 96 | AF100: 20 | AJ100: 0.1354957442 | AK100: 0.4725042558 | AL100: -0.03300851152 | AM100: 0.6410085115 | AN100: -0.2015127673 | AO100: 0.8095127673 | AP100: 0.304 | AR100: 0 | AS100: 0 | BD100: 96
A101: 0 | C101: =IF(input!F51="","",input!F51) ->  | D101: " | F101: ", | S101: =I67 -> 0.642311 | T101: =I68 -> 0.332071 | AE101: 97 | AF101: =IF((Anzahl>AE101),AE101,Anzahl) -> 20 | AH101: =IF(OGW="",#N/A,IF(B101<>"",OGW,#N/A)) ->  | AI101: =IF(UGW="",#N/A,IF(B101<>"",UGW,#N/A)) ->  | AJ101: 0.1354957442 | AK101: 0.4725042558 | AL101: -0.03300851152 | AM101: 0.6410085115 | AN101: -0.2015127673 | AO101: 0.8095127673 | AP101: 0.304 | AR101: =IF(AND(B101<>"",B101<UGW),1,0) -> 0 | AS101: =IF(AND(B101<>"",B101>OGW),1,0) -> 0 | BD101: 97 | BE101: =IF(B101="",NA(),SMALL(xi,BF101)) ->  | BG101: =IF(B101="","",NORMSDIST((BE101-fxds)/Standardabweichung)) ->  | BI101: =IF(IF(B101="","",SMALL(BG,BF101))=0,0.0001,IF(B101="","",SMALL(BG,BF101))) ->  | BK101: =IF(B101="",NA(),NORMSINV((BF101-0.3)/(Anzahl+0.4))) -> 
A102: 0 | C102: =IF(input!F52="","",input!F52) ->  | D102: " | F102: ", | S102: =I69 -> 0.706795 | T102: =I70 -> 0.15143 | AE102: 98 | AF102: 20 | AJ102: =AJ101 -> 0.1354957442 | AK102: 0.4725042558 | AL102: -0.03300851152 | AM102: 0.6410085115 | AN102: -0.2015127673 | AO102: 0.8095127673 | AP102: 0.304 | AR102: 0 | AS102: 0 | BD102: 98
A103: 0 | C103: =IF(input!F53="","",input!F53) ->  | D103: " | F103: ", | S103: =I71 -> 0.84124 | T103: =I72 -> 0.01913 | AE103: 99 | AF103: 20 | AJ103: 0.1354957442 | AK103: 0.4725042558 | AL103: -0.03300851152 | AM103: 0.6410085115 | AN103: -0.2015127673 | AO103: 0.8095127673 | AP103: 0.304 | AR103: 0 | AS103: 0 | BD103: 99
A104: 0 | C104: =IF(input!F54="","",input!F54) ->  | D104: " | F104: ", | AE104: 100 | AF104: 20 | AJ104: 0.1354957442 | AK104: 0.4725042558 | AL104: -0.03300851152 | AM104: 0.6410085115 | AN104: -0.2015127673 | AO104: 0.8095127673 | AP104: 0.304 | AR104: 0 | AS104: 0 | BD104: 100
A105: 0 | C105: =IF(input!I5="","",input!I5) ->  | D105: " | F105: ", | AE105: 101 | AF105: 20 | AJ105: 0.1354957442 | AK105: 0.4725042558 | AL105: -0.03300851152 | AM105: 0.6410085115 | AN105: -0.2015127673 | AO105: 0.8095127673 | AP105: 0.304 | AR105: 0 | AS105: 0 | BD105: 101
A106: 0 | C106: =IF(input!I6="","",input!I6) ->  | D106: " | F106: ", | AE106: 102 | AF106: 20 | AJ106: 0.1354957442 | AK106: 0.4725042558 | AL106: -0.03300851152 | AM106: 0.6410085115 | AN106: -0.2015127673 | AO106: 0.8095127673 | AP106: 0.304 | AR106: 0 | AS106: 0 | BD106: 102
A107: 0 | C107: =IF(input!I7="","",input!I7) ->  | D107: " | F107: ", | AE107: 103 | AF107: 20 | AJ107: 0.1354957442 | AK107: 0.4725042558 | AL107: -0.03300851152 | AM107: 0.6410085115 | AN107: -0.2015127673 | AO107: 0.8095127673 | AP107: 0.304 | AR107: 0 | AS107: 0 | BD107: 103
A108: 0 | C108: =IF(input!I8="","",input!I8) ->  | D108: " | F108: ", | AE108: 104 | AF108: 20 | AJ108: 0.1354957442 | AK108: 0.4725042558 | AL108: -0.03300851152 | AM108: 0.6410085115 | AN108: -0.2015127673 | AO108: 0.8095127673 | AP108: 0.304 | AR108: 0 | AS108: 0 | BD108: 104
A109: 0 | C109: =IF(input!I9="","",input!I9) ->  | D109: " | F109: ", | AE109: 105 | AF109: 20 | AJ109: 0.1354957442 | AK109: 0.4725042558 | AL109: -0.03300851152 | AM109: 0.6410085115 | AN109: -0.2015127673 | AO109: 0.8095127673 | AP109: 0.304 | AR109: 0 | AS109: 0 | BD109: 105
A110: 0 | C110: =IF(input!I10="","",input!I10) ->  | D110: " | F110: ", | AE110: 106 | AF110: 20 | AJ110: 0.1354957442 | AK110: 0.4725042558 | AL110: -0.03300851152 | AM110: 0.6410085115 | AN110: -0.2015127673 | AO110: 0.8095127673 | AP110: 0.304 | AR110: 0 | AS110: 0 | BD110: 106
A111: 0 | C111: =IF(input!I11="","",input!I11) ->  | D111: " | F111: ", | AE111: 107 | AF111: 20 | AJ111: 0.1354957442 | AK111: 0.4725042558 | AL111: -0.03300851152 | AM111: 0.6410085115 | AN111: -0.2015127673 | AO111: 0.8095127673 | AP111: 0.304 | AR111: 0 | AS111: 0 | BD111: 107
A112: 0 | C112: =IF(input!I12="","",input!I12) ->  | D112: " | F112: ", | AE112: 108 | AF112: 20 | AJ112: 0.1354957442 | AK112: 0.4725042558 | AL112: -0.03300851152 | AM112: 0.6410085115 | AN112: -0.2015127673 | AO112: 0.8095127673 | AP112: 0.304 | AR112: 0 | AS112: 0 | BD112: 108
A113: 0 | C113: =IF(input!I13="","",input!I13) ->  | D113: " | F113: ", | AE113: 109 | AF113: 20 | AJ113: 0.1354957442 | AK113: 0.4725042558 | AL113: -0.03300851152 | AM113: 0.6410085115 | AN113: -0.2015127673 | AO113: 0.8095127673 | AP113: 0.304 | AR113: 0 | AS113: 0 | BD113: 109
A114: 0 | C114: =IF(input!I14="","",input!I14) ->  | D114: " | F114: ", | AE114: 110 | AF114: 20 | AJ114: 0.1354957442 | AK114: 0.4725042558 | AL114: -0.03300851152 | AM114: 0.6410085115 | AN114: -0.2015127673 | AO114: 0.8095127673 | AP114: 0.304 | AR114: 0 | AS114: 0 | BD114: 110
A115: 0 | C115: =IF(input!I15="","",input!I15) ->  | D115: " | F115: ", | AE115: 111 | AF115: 20 | AJ115: 0.1354957442 | AK115: 0.4725042558 | AL115: -0.03300851152 | AM115: 0.6410085115 | AN115: -0.2015127673 | AO115: 0.8095127673 | AP115: 0.304 | AR115: 0 | AS115: 0 | BD115: 111
A116: 0 | C116: =IF(input!I16="","",input!I16) ->  | D116: " | F116: ", | AE116: 112 | AF116: 20 | AJ116: 0.1354957442 | AK116: 0.4725042558 | AL116: -0.03300851152 | AM116: 0.6410085115 | AN116: -0.2015127673 | AO116: 0.8095127673 | AP116: 0.304 | AR116: 0 | AS116: 0 | BD116: 112
A117: 0 | C117: =IF(input!I17="","",input!I17) ->  | D117: " | F117: ", | AE117: 113 | AF117: 20 | AJ117: 0.1354957442 | AK117: 0.4725042558 | AL117: -0.03300851152 | AM117: 0.6410085115 | AN117: -0.2015127673 | AO117: 0.8095127673 | AP117: 0.304 | AR117: 0 | AS117: 0 | BD117: 113
A118: 0 | C118: =IF(input!I18="","",input!I18) ->  | D118: " | F118: ", | AE118: 114 | AF118: 20 | AJ118: =AJ117 -> 0.1354957442 | AK118: 0.4725042558 | AL118: -0.03300851152 | AM118: 0.6410085115 | AN118: -0.2015127673 | AO118: 0.8095127673 | AP118: 0.304 | AR118: 0 | AS118: 0 | BD118: 114
A119: 0 | C119: =IF(input!I19="","",input!I19) ->  | D119: " | F119: ", | AE119: 115 | AF119: 20 | AJ119: 0.1354957442 | AK119: 0.4725042558 | AL119: -0.03300851152 | AM119: 0.6410085115 | AN119: -0.2015127673 | AO119: 0.8095127673 | AP119: 0.304 | AR119: 0 | AS119: 0 | BD119: 115
A120: 0 | C120: =IF(input!I20="","",input!I20) ->  | D120: " | F120: ", | AE120: 116 | AF120: 20 | AJ120: 0.1354957442 | AK120: 0.4725042558 | AL120: -0.03300851152 | AM120: 0.6410085115 | AN120: -0.2015127673 | AO120: 0.8095127673 | AP120: 0.304 | AR120: 0 | AS120: 0 | BD120: 116
A121: 0 | C121: =IF(input!I21="","",input!I21) ->  | D121: " | F121: ", | AE121: 117 | AF121: 20 | AJ121: 0.1354957442 | AK121: 0.4725042558 | AL121: -0.03300851152 | AM121: 0.6410085115 | AN121: -0.2015127673 | AO121: 0.8095127673 | AP121: 0.304 | AR121: 0 | AS121: 0 | BD121: 117
A122: 0 | C122: =IF(input!I22="","",input!I22) ->  | D122: " | F122: ", | AE122: 118 | AF122: 20 | AJ122: 0.1354957442 | AK122: 0.4725042558 | AL122: -0.03300851152 | AM122: 0.6410085115 | AN122: -0.2015127673 | AO122: 0.8095127673 | AP122: 0.304 | AR122: 0 | AS122: 0 | BD122: 118
A123: 0 | C123: =IF(input!I23="","",input!I23) ->  | D123: " | F123: ", | AE123: 119 | AF123: 20 | AJ123: 0.1354957442 | AK123: 0.4725042558 | AL123: -0.03300851152 | AM123: 0.6410085115 | AN123: -0.2015127673 | AO123: 0.8095127673 | AP123: 0.304 | AR123: 0 | AS123: 0 | BD123: 119
A124: 0 | C124: =IF(input!I24="","",input!I24) ->  | D124: " | F124: ", | AE124: 120 | AF124: 20 | AJ124: 0.1354957442 | AK124: 0.4725042558 | AL124: -0.03300851152 | AM124: 0.6410085115 | AN124: -0.2015127673 | AO124: 0.8095127673 | AP124: 0.304 | AR124: 0 | AS124: 0 | BD124: 120
A125: 0 | C125: =IF(input!I25="","",input!I25) ->  | D125: " | F125: ", | AE125: 121 | AF125: 20 | AJ125: 0.1354957442 | AK125: 0.4725042558 | AL125: -0.03300851152 | AM125: 0.6410085115 | AN125: -0.2015127673 | AO125: 0.8095127673 | AP125: 0.304 | AR125: 0 | AS125: 0 | BD125: 121
A126: 0 | C126: =IF(input!I26="","",input!I26) ->  | D126: " | F126: ", | AE126: 122 | AF126: 20 | AJ126: 0.1354957442 | AK126: 0.4725042558 | AL126: -0.03300851152 | AM126: 0.6410085115 | AN126: -0.2015127673 | AO126: 0.8095127673 | AP126: 0.304 | AR126: 0 | AS126: 0 | BD126: 122
A127: 0 | C127: =IF(input!I27="","",input!I27) ->  | D127: " | F127: ", | AE127: 123 | AF127: 20 | AJ127: 0.1354957442 | AK127: 0.4725042558 | AL127: -0.03300851152 | AM127: 0.6410085115 | AN127: -0.2015127673 | AO127: 0.8095127673 | AP127: 0.304 | AR127: 0 | AS127: 0 | BD127: 123
A128: 0 | C128: =IF(input!I28="","",input!I28) ->  | D128: " | F128: ", | AE128: 124 | AF128: 20 | AJ128: 0.1354957442 | AK128: 0.4725042558 | AL128: -0.03300851152 | AM128: 0.6410085115 | AN128: -0.2015127673 | AO128: 0.8095127673 | AP128: 0.304 | AR128: 0 | AS128: 0 | BD128: 124
A129: 0 | C129: =IF(input!I29="","",input!I29) ->  | D129: " | F129: ", | AE129: 125 | AF129: 20 | AJ129: 0.1354957442 | AK129: 0.4725042558 | AL129: -0.03300851152 | AM129: 0.6410085115 | AN129: -0.2015127673 | AO129: 0.8095127673 | AP129: 0.304 | AR129: 0 | AS129: 0 | BD129: 125
A130: 0 | C130: =IF(input!I30="","",input!I30) ->  | D130: " | F130: ", | AE130: 126 | AF130: 20 | AJ130: 0.1354957442 | AK130: 0.4725042558 | AL130: -0.03300851152 | AM130: 0.6410085115 | AN130: -0.2015127673 | AO130: 0.8095127673 | AP130: 0.304 | AR130: 0 | AS130: 0 | BD130: 126
A131: 0 | C131: =IF(input!I31="","",input!I31) ->  | D131: " | F131: ", | AE131: 127 | AF131: 20 | AJ131: 0.1354957442 | AK131: 0.4725042558 | AL131: -0.03300851152 | AM131: 0.6410085115 | AN131: -0.2015127673 | AO131: 0.8095127673 | AP131: 0.304 | AR131: 0 | AS131: 0 | BD131: 127
A132: 0 | C132: =IF(input!I32="","",input!I32) ->  | D132: " | F132: ", | AE132: 128 | AF132: 20 | AJ132: 0.1354957442 | AK132: 0.4725042558 | AL132: -0.03300851152 | AM132: 0.6410085115 | AN132: -0.2015127673 | AO132: 0.8095127673 | AP132: 0.304 | AR132: 0 | AS132: 0 | BD132: 128
A133: 0 | C133: =IF(input!I33="","",input!I33) ->  | D133: " | F133: ", | AE133: 129 | AF133: =IF((Anzahl>AE133),AE133,Anzahl) -> 20 | AH133: =IF(OGW="",#N/A,IF(B133<>"",OGW,#N/A)) ->  | AI133: =IF(UGW="",#N/A,IF(B133<>"",UGW,#N/A)) ->  | AJ133: 0.1354957442 | AK133: 0.4725042558 | AL133: -0.03300851152 | AM133: 0.6410085115 | AN133: -0.2015127673 | AO133: 0.8095127673 | AP133: 0.304 | AR133: =IF(AND(B133<>"",B133<UGW),1,0) -> 0 | AS133: =IF(AND(B133<>"",B133>OGW),1,0) -> 0 | BD133: 129 | BE133: =IF(B133="",NA(),SMALL(xi,BF133)) ->  | BG133: =IF(B133="","",NORMSDIST((BE133-fxds)/Standardabweichung)) ->  | BI133: =IF(IF(B133="","",SMALL(BG,BF133))=0,0.0001,IF(B133="","",SMALL(BG,BF133))) ->  | BK133: =IF(B133="",NA(),NORMSINV((BF133-0.3)/(Anzahl+0.4))) -> 
A134: =IF(B134=C134,0,1) -> 0 | C134: =IF(input!I34="","",input!I34) ->  | D134: " | E134: =SUBSTITUTE(C134,",",".") ->  | F134: ", | AE134: 130 | AF134: 20 | AG134: =IF(B134<>"",B134,#N/A) ->  | AJ134: =AJ133 -> 0.1354957442 | AK134: 0.4725042558 | AL134: -0.03300851152 | AM134: 0.6410085115 | AN134: -0.2015127673 | AO134: 0.8095127673 | AP134: 0.304 | AR134: 0 | AS134: 0 | BD134: 130 | BH134: =IF(B134="","",1-BG134) ->  | BJ134: =IF(B134="","",(2*BF134-1)*(LN(BI134)+LN(BG134))) -> 
A135: 0 | C135: =IF(input!I35="","",input!I35) ->  | D135: " | F135: ", | AE135: 131 | AF135: 20 | AJ135: 0.1354957442 | AK135: 0.4725042558 | AL135: -0.03300851152 | AM135: 0.6410085115 | AN135: -0.2015127673 | AO135: 0.8095127673 | AP135: 0.304 | AR135: 0 | AS135: 0 | BD135: 131 | BF135: =IF(B135="","",1+BF134) -> 
A136: 0 | C136: =IF(input!I36="","",input!I36) ->  | D136: " | F136: ", | AE136: 132 | AF136: 20 | AJ136: 0.1354957442 | AK136: 0.4725042558 | AL136: -0.03300851152 | AM136: 0.6410085115 | AN136: -0.2015127673 | AO136: 0.8095127673 | AP136: 0.304 | AR136: 0 | AS136: 0 | BD136: 132
A137: 0 | C137: =IF(input!I37="","",input!I37) ->  | D137: " | F137: ", | AE137: 133 | AF137: 20 | AJ137: 0.1354957442 | AK137: 0.4725042558 | AL137: -0.03300851152 | AM137: 0.6410085115 | AN137: -0.2015127673 | AO137: 0.8095127673 | AP137: 0.304 | AR137: 0 | AS137: 0 | BD137: 133
A138: 0 | C138: =IF(input!I38="","",input!I38) ->  | D138: " | F138: ", | AE138: 134 | AF138: 20 | AJ138: 0.1354957442 | AK138: 0.4725042558 | AL138: -0.03300851152 | AM138: 0.6410085115 | AN138: -0.2015127673 | AO138: 0.8095127673 | AP138: 0.304 | AR138: 0 | AS138: 0 | BD138: 134
A139: 0 | C139: =IF(input!I39="","",input!I39) ->  | D139: " | F139: ", | AE139: 135 | AF139: 20 | AJ139: 0.1354957442 | AK139: 0.4725042558 | AL139: -0.03300851152 | AM139: 0.6410085115 | AN139: -0.2015127673 | AO139: 0.8095127673 | AP139: 0.304 | AR139: 0 | AS139: 0 | BD139: 135
A140: 0 | C140: =IF(input!I40="","",input!I40) ->  | D140: " | F140: ", | AE140: 136 | AF140: 20 | AJ140: 0.1354957442 | AK140: 0.4725042558 | AL140: -0.03300851152 | AM140: 0.6410085115 | AN140: -0.2015127673 | AO140: 0.8095127673 | AP140: 0.304 | AR140: 0 | AS140: 0 | BD140: 136
A141: 0 | C141: =IF(input!I41="","",input!I41) ->  | D141: " | F141: ", | AE141: 137 | AF141: 20 | AJ141: 0.1354957442 | AK141: 0.4725042558 | AL141: -0.03300851152 | AM141: 0.6410085115 | AN141: -0.2015127673 | AO141: 0.8095127673 | AP141: 0.304 | AR141: 0 | AS141: 0 | BD141: 137
A142: 0 | C142: =IF(input!I42="","",input!I42) ->  | D142: " | F142: ", | AE142: 138 | AF142: 20 | AJ142: 0.1354957442 | AK142: 0.4725042558 | AL142: -0.03300851152 | AM142: 0.6410085115 | AN142: -0.2015127673 | AO142: 0.8095127673 | AP142: 0.304 | AR142: 0 | AS142: 0 | BD142: 138
A143: 0 | C143: =IF(input!I43="","",input!I43) ->  | D143: " | F143: ", | AE143: 139 | AF143: 20 | AJ143: 0.1354957442 | AK143: 0.4725042558 | AL143: -0.03300851152 | AM143: 0.6410085115 | AN143: -0.2015127673 | AO143: 0.8095127673 | AP143: 0.304 | AR143: 0 | AS143: 0 | BD143: 139
A144: 0 | C144: =IF(input!I44="","",input!I44) ->  | D144: " | F144: ", | AE144: 140 | AF144: 20 | AJ144: 0.1354957442 | AK144: 0.4725042558 | AL144: -0.03300851152 | AM144: 0.6410085115 | AN144: -0.2015127673 | AO144: 0.8095127673 | AP144: 0.304 | AR144: 0 | AS144: 0 | BD144: 140
A145: 0 | C145: =IF(input!I45="","",input!I45) ->  | D145: " | F145: ", | AE145: 141 | AF145: 20 | AJ145: 0.1354957442 | AK145: 0.4725042558 | AL145: -0.03300851152 | AM145: 0.6410085115 | AN145: -0.2015127673 | AO145: 0.8095127673 | AP145: 0.304 | AR145: 0 | AS145: 0 | BD145: 141
A146: 0 | C146: =IF(input!I46="","",input!I46) ->  | D146: " | F146: ", | AE146: 142 | AF146: 20 | AJ146: 0.1354957442 | AK146: 0.4725042558 | AL146: -0.03300851152 | AM146: 0.6410085115 | AN146: -0.2015127673 | AO146: 0.8095127673 | AP146: 0.304 | AR146: 0 | AS146: 0 | BD146: 142
A147: 0 | C147: =IF(input!I47="","",input!I47) ->  | D147: " | F147: ", | AE147: 143 | AF147: 20 | AJ147: 0.1354957442 | AK147: 0.4725042558 | AL147: -0.03300851152 | AM147: 0.6410085115 | AN147: -0.2015127673 | AO147: 0.8095127673 | AP147: 0.304 | AR147: 0 | AS147: 0 | BD147: 143
A148: 0 | C148: =IF(input!I48="","",input!I48) ->  | D148: " | F148: ", | AE148: 144 | AF148: 20 | AJ148: 0.1354957442 | AK148: 0.4725042558 | AL148: -0.03300851152 | AM148: 0.6410085115 | AN148: -0.2015127673 | AO148: 0.8095127673 | AP148: 0.304 | AR148: 0 | AS148: 0 | BD148: 144
A149: 0 | C149: =IF(input!I49="","",input!I49) ->  | D149: " | F149: ", | AE149: 145 | AF149: 20 | AJ149: 0.1354957442 | AK149: 0.4725042558 | AL149: -0.03300851152 | AM149: 0.6410085115 | AN149: -0.2015127673 | AO149: 0.8095127673 | AP149: 0.304 | AR149: 0 | AS149: 0 | BD149: 145
A150: 0 | C150: =IF(input!I50="","",input!I50) ->  | D150: " | F150: ", | AE150: 146 | AF150: 20 | AJ150: =AJ149 -> 0.1354957442 | AK150: 0.4725042558 | AL150: -0.03300851152 | AM150: 0.6410085115 | AN150: -0.2015127673 | AO150: 0.8095127673 | AP150: 0.304 | AR150: 0 | AS150: 0 | BD150: 146
A151: 0 | C151: =IF(input!I51="","",input!I51) ->  | D151: " | F151: ", | AE151: 147 | AF151: 20 | AJ151: 0.1354957442 | AK151: 0.4725042558 | AL151: -0.03300851152 | AM151: 0.6410085115 | AN151: -0.2015127673 | AO151: 0.8095127673 | AP151: 0.304 | AR151: 0 | AS151: 0 | BD151: 147
A152: 0 | C152: =IF(input!I52="","",input!I52) ->  | D152: " | F152: ", | AE152: 148 | AF152: 20 | AJ152: 0.1354957442 | AK152: 0.4725042558 | AL152: -0.03300851152 | AM152: 0.6410085115 | AN152: -0.2015127673 | AO152: 0.8095127673 | AP152: 0.304 | AR152: 0 | AS152: 0 | BD152: 148
A153: 0 | C153: =IF(input!I53="","",input!I53) ->  | D153: " | F153: ", | AE153: 149 | AF153: 20 | AJ153: 0.1354957442 | AK153: 0.4725042558 | AL153: -0.03300851152 | AM153: 0.6410085115 | AN153: -0.2015127673 | AO153: 0.8095127673 | AP153: 0.304 | AR153: 0 | AS153: 0 | BD153: 149
A154: 0 | C154: =IF(input!I54="","",input!I54) ->  | D154: " | F154: ", | AE154: 150 | AF154: 20 | AJ154: 0.1354957442 | AK154: 0.4725042558 | AL154: -0.03300851152 | AM154: 0.6410085115 | AN154: -0.2015127673 | AO154: 0.8095127673 | AP154: 0.304 | AR154: 0 | AS154: 0 | BD154: 150
A155: 0 | C155: =IF(input!L5="","",input!L5) ->  | D155: " | F155: ", | AE155: 151 | AF155: 20 | AJ155: 0.1354957442 | AK155: 0.4725042558 | AL155: -0.03300851152 | AM155: 0.6410085115 | AN155: -0.2015127673 | AO155: 0.8095127673 | AP155: 0.304 | AR155: 0 | AS155: 0 | BD155: 151
A156: 0 | C156: =IF(input!L6="","",input!L6) ->  | D156: " | F156: ", | AE156: 152 | AF156: 20 | AJ156: 0.1354957442 | AK156: 0.4725042558 | AL156: -0.03300851152 | AM156: 0.6410085115 | AN156: -0.2015127673 | AO156: 0.8095127673 | AP156: 0.304 | AR156: 0 | AS156: 0 | BD156: 152
A157: 0 | C157: =IF(input!L7="","",input!L7) ->  | D157: " | F157: ", | AE157: 153 | AF157: 20 | AJ157: 0.1354957442 | AK157: 0.4725042558 | AL157: -0.03300851152 | AM157: 0.6410085115 | AN157: -0.2015127673 | AO157: 0.8095127673 | AP157: 0.304 | AR157: 0 | AS157: 0 | BD157: 153
A158: 0 | C158: =IF(input!L8="","",input!L8) ->  | D158: " | F158: ", | AE158: 154 | AF158: 20 | AJ158: 0.1354957442 | AK158: 0.4725042558 | AL158: -0.03300851152 | AM158: 0.6410085115 | AN158: -0.2015127673 | AO158: 0.8095127673 | AP158: 0.304 | AR158: 0 | AS158: 0 | BD158: 154
A159: 0 | C159: =IF(input!L9="","",input!L9) ->  | D159: " | F159: ", | AE159: 155 | AF159: 20 | AJ159: 0.1354957442 | AK159: 0.4725042558 | AL159: -0.03300851152 | AM159: 0.6410085115 | AN159: -0.2015127673 | AO159: 0.8095127673 | AP159: 0.304 | AR159: 0 | AS159: 0 | BD159: 155
A160: 0 | C160: =IF(input!L10="","",input!L10) ->  | D160: " | F160: ", | AE160: 156 | AF160: 20 | AJ160: 0.1354957442 | AK160: 0.4725042558 | AL160: -0.03300851152 | AM160: 0.6410085115 | AN160: -0.2015127673 | AO160: 0.8095127673 | AP160: 0.304 | AR160: 0 | AS160: 0 | BD160: 156
A161: 0 | C161: =IF(input!L11="","",input!L11) ->  | D161: " | F161: ", | AE161: 157 | AF161: 20 | AJ161: 0.1354957442 | AK161: 0.4725042558 | AL161: -0.03300851152 | AM161: 0.6410085115 | AN161: -0.2015127673 | AO161: 0.8095127673 | AP161: 0.304 | AR161: 0 | AS161: 0 | BD161: 157
A162: 0 | C162: =IF(input!L12="","",input!L12) ->  | D162: " | F162: ", | AE162: 158 | AF162: 20 | AJ162: 0.1354957442 | AK162: 0.4725042558 | AL162: -0.03300851152 | AM162: 0.6410085115 | AN162: -0.2015127673 | AO162: 0.8095127673 | AP162: 0.304 | AR162: 0 | AS162: 0 | BD162: 158
A163: 0 | C163: =IF(input!L13="","",input!L13) ->  | D163: " | F163: ", | AE163: 159 | AF163: 20 | AJ163: 0.1354957442 | AK163: 0.4725042558 | AL163: -0.03300851152 | AM163: 0.6410085115 | AN163: -0.2015127673 | AO163: 0.8095127673 | AP163: 0.304 | AR163: 0 | AS163: 0 | BD163: 159
A164: 0 | C164: =IF(input!L14="","",input!L14) ->  | D164: " | F164: ", | AE164: 160 | AF164: 20 | AJ164: 0.1354957442 | AK164: 0.4725042558 | AL164: -0.03300851152 | AM164: 0.6410085115 | AN164: -0.2015127673 | AO164: 0.8095127673 | AP164: 0.304 | AR164: 0 | AS164: 0 | BD164: 160
A165: 0 | C165: =IF(input!L15="","",input!L15) ->  | D165: " | F165: ", | AE165: 161 | AF165: =IF((Anzahl>AE165),AE165,Anzahl) -> 20 | AH165: =IF(OGW="",#N/A,IF(B165<>"",OGW,#N/A)) ->  | AI165: =IF(UGW="",#N/A,IF(B165<>"",UGW,#N/A)) ->  | AJ165: 0.1354957442 | AK165: 0.4725042558 | AL165: -0.03300851152 | AM165: 0.6410085115 | AN165: -0.2015127673 | AO165: 0.8095127673 | AP165: 0.304 | AR165: =IF(AND(B165<>"",B165<UGW),1,0) -> 0 | AS165: =IF(AND(B165<>"",B165>OGW),1,0) -> 0 | BD165: 161 | BE165: =IF(B165="",NA(),SMALL(xi,BF165)) ->  | BG165: =IF(B165="","",NORMSDIST((BE165-fxds)/Standardabweichung)) ->  | BI165: =IF(IF(B165="","",SMALL(BG,BF165))=0,0.0001,IF(B165="","",SMALL(BG,BF165))) ->  | BK165: =IF(B165="",NA(),NORMSINV((BF165-0.3)/(Anzahl+0.4))) -> 
A166: 0 | C166: =IF(input!L16="","",input!L16) ->  | D166: " | F166: ", | AE166: 162 | AF166: 20 | AJ166: =AJ165 -> 0.1354957442 | AK166: 0.4725042558 | AL166: -0.03300851152 | AM166: 0.6410085115 | AN166: -0.2015127673 | AO166: 0.8095127673 | AP166: 0.304 | AR166: 0 | AS166: 0 | BD166: 162
A167: 0 | C167: =IF(input!L17="","",input!L17) ->  | D167: " | F167: ", | AE167: 163 | AF167: 20 | AJ167: 0.1354957442 | AK167: 0.4725042558 | AL167: -0.03300851152 | AM167: 0.6410085115 | AN167: -0.2015127673 | AO167: 0.8095127673 | AP167: 0.304 | AR167: 0 | AS167: 0 | BD167: 163
A168: 0 | C168: =IF(input!L18="","",input!L18) ->  | D168: " | F168: ", | AE168: 164 | AF168: 20 | AJ168: 0.1354957442 | AK168: 0.4725042558 | AL168: -0.03300851152 | AM168: 0.6410085115 | AN168: -0.2015127673 | AO168: 0.8095127673 | AP168: 0.304 | AR168: 0 | AS168: 0 | BD168: 164
A169: 0 | C169: =IF(input!L19="","",input!L19) ->  | D169: " | F169: ", | AE169: 165 | AF169: 20 | AJ169: 0.1354957442 | AK169: 0.4725042558 | AL169: -0.03300851152 | AM169: 0.6410085115 | AN169: -0.2015127673 | AO169: 0.8095127673 | AP169: 0.304 | AR169: 0 | AS169: 0 | BD169: 165
A170: 0 | C170: =IF(input!L20="","",input!L20) ->  | D170: " | F170: ", | AE170: 166 | AF170: 20 | AJ170: 0.1354957442 | AK170: 0.4725042558 | AL170: -0.03300851152 | AM170: 0.6410085115 | AN170: -0.2015127673 | AO170: 0.8095127673 | AP170: 0.304 | AR170: 0 | AS170: 0 | BD170: 166
A171: 0 | C171: =IF(input!L21="","",input!L21) ->  | D171: " | F171: ", | AE171: 167 | AF171: 20 | AJ171: 0.1354957442 | AK171: 0.4725042558 | AL171: -0.03300851152 | AM171: 0.6410085115 | AN171: -0.2015127673 | AO171: 0.8095127673 | AP171: 0.304 | AR171: 0 | AS171: 0 | BD171: 167
A172: 0 | C172: =IF(input!L22="","",input!L22) ->  | D172: " | F172: ", | AE172: 168 | AF172: 20 | AJ172: 0.1354957442 | AK172: 0.4725042558 | AL172: -0.03300851152 | AM172: 0.6410085115 | AN172: -0.2015127673 | AO172: 0.8095127673 | AP172: 0.304 | AR172: 0 | AS172: 0 | BD172: 168
A173: 0 | C173: =IF(input!L23="","",input!L23) ->  | D173: " | F173: ", | AE173: 169 | AF173: 20 | AJ173: 0.1354957442 | AK173: 0.4725042558 | AL173: -0.03300851152 | AM173: 0.6410085115 | AN173: -0.2015127673 | AO173: 0.8095127673 | AP173: 0.304 | AR173: 0 | AS173: 0 | BD173: 169
A174: 0 | C174: =IF(input!L24="","",input!L24) ->  | D174: " | F174: ", | AE174: 170 | AF174: 20 | AJ174: 0.1354957442 | AK174: 0.4725042558 | AL174: -0.03300851152 | AM174: 0.6410085115 | AN174: -0.2015127673 | AO174: 0.8095127673 | AP174: 0.304 | AR174: 0 | AS174: 0 | BD174: 170
A175: 0 | C175: =IF(input!L25="","",input!L25) ->  | D175: " | F175: ", | AE175: 171 | AF175: 20 | AJ175: 0.1354957442 | AK175: 0.4725042558 | AL175: -0.03300851152 | AM175: 0.6410085115 | AN175: -0.2015127673 | AO175: 0.8095127673 | AP175: 0.304 | AR175: 0 | AS175: 0 | BD175: 171
A176: 0 | C176: =IF(input!L26="","",input!L26) ->  | D176: " | F176: ", | AE176: 172 | AF176: 20 | AJ176: 0.1354957442 | AK176: 0.4725042558 | AL176: -0.03300851152 | AM176: 0.6410085115 | AN176: -0.2015127673 | AO176: 0.8095127673 | AP176: 0.304 | AR176: 0 | AS176: 0 | BD176: 172
A177: 0 | C177: =IF(input!L27="","",input!L27) ->  | D177: " | F177: ", | AE177: 173 | AF177: 20 | AJ177: 0.1354957442 | AK177: 0.4725042558 | AL177: -0.03300851152 | AM177: 0.6410085115 | AN177: -0.2015127673 | AO177: 0.8095127673 | AP177: 0.304 | AR177: 0 | AS177: 0 | BD177: 173
A178: 0 | C178: =IF(input!L28="","",input!L28) ->  | D178: " | F178: ", | AE178: 174 | AF178: 20 | AJ178: 0.1354957442 | AK178: 0.4725042558 | AL178: -0.03300851152 | AM178: 0.6410085115 | AN178: -0.2015127673 | AO178: 0.8095127673 | AP178: 0.304 | AR178: 0 | AS178: 0 | BD178: 174
A179: 0 | C179: =IF(input!L29="","",input!L29) ->  | D179: " | F179: ", | AE179: 175 | AF179: 20 | AJ179: 0.1354957442 | AK179: 0.4725042558 | AL179: -0.03300851152 | AM179: 0.6410085115 | AN179: -0.2015127673 | AO179: 0.8095127673 | AP179: 0.304 | AR179: 0 | AS179: 0 | BD179: 175
A180: 0 | C180: =IF(input!L30="","",input!L30) ->  | D180: " | F180: ", | AE180: 176 | AF180: 20 | AJ180: 0.1354957442 | AK180: 0.4725042558 | AL180: -0.03300851152 | AM180: 0.6410085115 | AN180: -0.2015127673 | AO180: 0.8095127673 | AP180: 0.304 | AR180: 0 | AS180: 0 | BD180: 176
A181: 0 | C181: =IF(input!L31="","",input!L31) ->  | D181: " | F181: ", | AE181: 177 | AF181: 20 | AJ181: 0.1354957442 | AK181: 0.4725042558 | AL181: -0.03300851152 | AM181: 0.6410085115 | AN181: -0.2015127673 | AO181: 0.8095127673 | AP181: 0.304 | AR181: 0 | AS181: 0 | BD181: 177
A182: 0 | C182: =IF(input!L32="","",input!L32) ->  | D182: " | F182: ", | AE182: 178 | AF182: 20 | AJ182: =AJ181 -> 0.1354957442 | AK182: 0.4725042558 | AL182: -0.03300851152 | AM182: 0.6410085115 | AN182: -0.2015127673 | AO182: 0.8095127673 | AP182: 0.304 | AR182: 0 | AS182: 0 | BD182: 178
A183: 0 | C183: =IF(input!L33="","",input!L33) ->  | D183: " | F183: ", | AE183: 179 | AF183: 20 | AJ183: 0.1354957442 | AK183: 0.4725042558 | AL183: -0.03300851152 | AM183: 0.6410085115 | AN183: -0.2015127673 | AO183: 0.8095127673 | AP183: 0.304 | AR183: 0 | AS183: 0 | BD183: 179
A184: 0 | C184: =IF(input!L34="","",input!L34) ->  | D184: " | F184: ", | AE184: 180 | AF184: 20 | AJ184: 0.1354957442 | AK184: 0.4725042558 | AL184: -0.03300851152 | AM184: 0.6410085115 | AN184: -0.2015127673 | AO184: 0.8095127673 | AP184: 0.304 | AR184: 0 | AS184: 0 | BD184: 180
A185: 0 | C185: =IF(input!L35="","",input!L35) ->  | D185: " | F185: ", | AE185: 181 | AF185: 20 | AJ185: 0.1354957442 | AK185: 0.4725042558 | AL185: -0.03300851152 | AM185: 0.6410085115 | AN185: -0.2015127673 | AO185: 0.8095127673 | AP185: 0.304 | AR185: 0 | AS185: 0 | BD185: 181
A186: 0 | C186: =IF(input!L36="","",input!L36) ->  | D186: " | F186: ", | AE186: 182 | AF186: 20 | AJ186: 0.1354957442 | AK186: 0.4725042558 | AL186: -0.03300851152 | AM186: 0.6410085115 | AN186: -0.2015127673 | AO186: 0.8095127673 | AP186: 0.304 | AR186: 0 | AS186: 0 | BD186: 182
A187: 0 | C187: =IF(input!L37="","",input!L37) ->  | D187: " | F187: ", | AE187: 183 | AF187: 20 | AJ187: 0.1354957442 | AK187: 0.4725042558 | AL187: -0.03300851152 | AM187: 0.6410085115 | AN187: -0.2015127673 | AO187: 0.8095127673 | AP187: 0.304 | AR187: 0 | AS187: 0 | BD187: 183
A188: 0 | C188: =IF(input!L38="","",input!L38) ->  | D188: " | F188: ", | AE188: 184 | AF188: 20 | AJ188: 0.1354957442 | AK188: 0.4725042558 | AL188: -0.03300851152 | AM188: 0.6410085115 | AN188: -0.2015127673 | AO188: 0.8095127673 | AP188: 0.304 | AR188: 0 | AS188: 0 | BD188: 184
A189: 0 | C189: =IF(input!L39="","",input!L39) ->  | D189: " | F189: ", | AE189: 185 | AF189: 20 | AJ189: 0.1354957442 | AK189: 0.4725042558 | AL189: -0.03300851152 | AM189: 0.6410085115 | AN189: -0.2015127673 | AO189: 0.8095127673 | AP189: 0.304 | AR189: 0 | AS189: 0 | BD189: 185
A190: 0 | C190: =IF(input!L40="","",input!L40) ->  | D190: " | F190: ", | AE190: 186 | AF190: 20 | AJ190: 0.1354957442 | AK190: 0.4725042558 | AL190: -0.03300851152 | AM190: 0.6410085115 | AN190: -0.2015127673 | AO190: 0.8095127673 | AP190: 0.304 | AR190: 0 | AS190: 0 | BD190: 186
A191: 0 | C191: =IF(input!L41="","",input!L41) ->  | D191: " | F191: ", | AE191: 187 | AF191: 20 | AJ191: 0.1354957442 | AK191: 0.4725042558 | AL191: -0.03300851152 | AM191: 0.6410085115 | AN191: -0.2015127673 | AO191: 0.8095127673 | AP191: 0.304 | AR191: 0 | AS191: 0 | BD191: 187
A192: 0 | C192: =IF(input!L42="","",input!L42) ->  | D192: " | F192: ", | AE192: 188 | AF192: 20 | AJ192: 0.1354957442 | AK192: 0.4725042558 | AL192: -0.03300851152 | AM192: 0.6410085115 | AN192: -0.2015127673 | AO192: 0.8095127673 | AP192: 0.304 | AR192: 0 | AS192: 0 | BD192: 188
A193: 0 | C193: =IF(input!L43="","",input!L43) ->  | D193: " | F193: ", | AE193: 189 | AF193: 20 | AJ193: 0.1354957442 | AK193: 0.4725042558 | AL193: -0.03300851152 | AM193: 0.6410085115 | AN193: -0.2015127673 | AO193: 0.8095127673 | AP193: 0.304 | AR193: 0 | AS193: 0 | BD193: 189
A194: 0 | C194: =IF(input!L44="","",input!L44) ->  | D194: " | F194: ", | AE194: 190 | AF194: 20 | AJ194: 0.1354957442 | AK194: 0.4725042558 | AL194: -0.03300851152 | AM194: 0.6410085115 | AN194: -0.2015127673 | AO194: 0.8095127673 | AP194: 0.304 | AR194: 0 | AS194: 0 | BD194: 190
A195: 0 | C195: =IF(input!L45="","",input!L45) ->  | D195: " | F195: ", | AE195: 191 | AF195: 20 | AJ195: 0.1354957442 | AK195: 0.4725042558 | AL195: -0.03300851152 | AM195: 0.6410085115 | AN195: -0.2015127673 | AO195: 0.8095127673 | AP195: 0.304 | AR195: 0 | AS195: 0 | BD195: 191
A196: 0 | C196: =IF(input!L46="","",input!L46) ->  | D196: " | F196: ", | AE196: 192 | AF196: 20 | AJ196: 0.1354957442 | AK196: 0.4725042558 | AL196: -0.03300851152 | AM196: 0.6410085115 | AN196: -0.2015127673 | AO196: 0.8095127673 | AP196: 0.304 | AR196: 0 | AS196: 0 | BD196: 192
A197: 0 | C197: =IF(input!L47="","",input!L47) ->  | D197: " | F197: ", | AE197: 193 | AF197: =IF((Anzahl>AE197),AE197,Anzahl) -> 20 | AH197: =IF(OGW="",#N/A,IF(B197<>"",OGW,#N/A)) ->  | AI197: =IF(UGW="",#N/A,IF(B197<>"",UGW,#N/A)) ->  | AJ197: 0.1354957442 | AK197: 0.4725042558 | AL197: -0.03300851152 | AM197: 0.6410085115 | AN197: -0.2015127673 | AO197: 0.8095127673 | AP197: 0.304 | AR197: =IF(AND(B197<>"",B197<UGW),1,0) -> 0 | AS197: =IF(AND(B197<>"",B197>OGW),1,0) -> 0 | BD197: 193 | BE197: =IF(B197="",NA(),SMALL(xi,BF197)) ->  | BG197: =IF(B197="","",NORMSDIST((BE197-fxds)/Standardabweichung)) ->  | BI197: =IF(IF(B197="","",SMALL(BG,BF197))=0,0.0001,IF(B197="","",SMALL(BG,BF197))) ->  | BK197: =IF(B197="",NA(),NORMSINV((BF197-0.3)/(Anzahl+0.4))) -> 
A198: =IF(B198=C198,0,1) -> 0 | C198: =IF(input!L48="","",input!L48) ->  | D198: " | E198: =SUBSTITUTE(C198,",",".") ->  | F198: ", | AE198: 194 | AF198: 20 | AG198: =IF(B198<>"",B198,#N/A) ->  | AJ198: =AJ197 -> 0.1354957442 | AK198: 0.4725042558 | AL198: -0.03300851152 | AM198: 0.6410085115 | AN198: -0.2015127673 | AO198: 0.8095127673 | AP198: 0.304 | AR198: 0 | AS198: 0 | BD198: 194 | BH198: =IF(B198="","",1-BG198) ->  | BJ198: =IF(B198="","",(2*BF198-1)*(LN(BI198)+LN(BG198))) -> 
A199: 0 | C199: =IF(input!L49="","",input!L49) ->  | D199: " | F199: ", | AE199: 195 | AF199: 20 | AJ199: 0.1354957442 | AK199: 0.4725042558 | AL199: -0.03300851152 | AM199: 0.6410085115 | AN199: -0.2015127673 | AO199: 0.8095127673 | AP199: 0.304 | AR199: 0 | AS199: 0 | BD199: 195 | BF199: =IF(B199="","",1+BF198) -> 
A200: 0 | C200: =IF(input!L50="","",input!L50) ->  | D200: " | F200: ", | AE200: 196 | AF200: 20 | AJ200: 0.1354957442 | AK200: 0.4725042558 | AL200: -0.03300851152 | AM200: 0.6410085115 | AN200: -0.2015127673 | AO200: 0.8095127673 | AP200: 0.304 | AR200: 0 | AS200: 0 | BD200: 196
... 6 more rows

Sheet info_setup
B2: =language!BX1 -> Gültige Lizenz erwerben | C2: Schreiben Sie eine Mail an roland.schnurr@sixsigmablackbelt.de
B4: =language!BC1 -> Sprache
B5: =language!BD1 -> User - Email
B6: =language!BE1 -> User - key
B8: =language!BF1 -> Gültig bis | C8: =calculation!I28 -> 00:00:00
B9: =language!BG1 -> Notizen | C9: =calculation!I29 -> 
B10: =language!BH1 -> 
B11: =language!BI1 -> Bemerkung | C11: =calculation!H20 -> ergebnisuservalidieren:user 0 mit cmk in datensatz nicht vorhanden
B13: =language!BQ1 -> Hilfe | C13: https://www.sixsigmablackbelt.de/help-hilfe-cmk-excel/
B15: =language!BT1 -> Kontakt | C15: roland.schnurr@sixsigmablackbelt.de
B16: =language!BU1 -> homepage | C16: www.sixsigmablackbelt.de

Sheet language
B1: 1 | C1: =VLOOKUP($B$1,$B$4:$CL$15,2,FALSE) -> Prozess- und Maschinenfähigkeit | D1: =VLOOKUP($B$1,$B$4:$CL$15,3,FALSE) -> Werte können geändert werden | E1: =VLOOKUP($B$1,$B$4:$CL$15,4,FALSE) -> Werte werden berechnet (Blatt Berechnung) | F1: =VLOOKUP($B$1,$B$4:$CL$15,5,FALSE) -> Artikel: | G1: =VLOOKUP($B$1,$B$4:$CL$15,6,FALSE) -> Nummer: | H1: =VLOOKUP($B$1,$B$4:$CL$15,7,FALSE) -> Zeichnung: | I1: =VLOOKUP($B$1,$B$4:$CL$15,8,FALSE) -> Prüfer: | J1: =VLOOKUP($B$1,$B$4:$CL$15,9,FALSE) -> Messmittel: | K1: =VLOOKUP($B$1,$B$4:$CL$15,10,FALSE) -> Datum: | L1: =VLOOKUP($B$1,$B$4:$CL$15,11,FALSE) -> Merkmal: | M1: =VLOOKUP($B$1,$B$4:$CL$15,12,FALSE) -> Maßeinheit: | N1: =VLOOKUP($B$1,$B$4:$CL$15,13,FALSE) -> Sollwert msoll = | O1: =VLOOKUP($B$1,$B$4:$CL$15,14,FALSE) -> UGW | P1: =VLOOKUP($B$1,$B$4:$CL$15,15,FALSE) -> OGW | Q1: =VLOOKUP($B$1,$B$4:$CL$15,16,FALSE) -> Anzahl Klassen Histogramm | R1: =VLOOKUP($B$1,$B$4:$CL$15,17,FALSE) -> Cpk< | S1: =VLOOKUP($B$1,$B$4:$CL$15,18,FALSE) -> Cpk | T1: =VLOOKUP($B$1,$B$4:$CL$15,19,FALSE) -> Cpk> | U1: =VLOOKUP($B$1,$B$4:$CL$15,20,FALSE) -> dazwischen | V1: =VLOOKUP($B$1,$B$4:$CL$15,21,FALSE) -> Prozess nicht fähig | W1: =VLOOKUP($B$1,$B$4:$CL$15,22,FALSE) -> Prozess bedingt fähig | X1: =VLOOKUP($B$1,$B$4:$CL$15,23,FALSE) -> Prozess fähig | Y1: =VLOOKUP($B$1,$B$4:$CL$15,24,FALSE) -> Stichprobenumfang | Z1: =VLOOKUP($B$1,$B$4:$CL$15,25,FALSE) -> Mittelwert | AA1: =VLOOKUP($B$1,$B$4:$CL$15,26,FALSE) -> Standardabweichung | AB1: =VLOOKUP($B$1,$B$4:$CL$15,27,FALSE) -> Die Werte sind nach Andersson Darling Test | AC1: =VLOOKUP($B$1,$B$4:$CL$15,28,FALSE) -> normalverteilt | AD1: =VLOOKUP($B$1,$B$4:$CL$15,29,FALSE) -> nicht normalverteilt | AE1: =VLOOKUP($B$1,$B$4:$CL$15,30,FALSE) -> 0 | AF1: =VLOOKUP($B$1,$B$4:$CL$15,31,FALSE) -> OGW | AG1: =VLOOKUP($B$1,$B$4:$CL$15,32,FALSE) -> UGW | AH1: =VLOOKUP($B$1,$B$4:$CL$15,33,FALSE) -> Stichprobe chronologisch | AI1: =VLOOKUP($B$1,$B$4:$CL$15,34,FALSE) -> Histogramm | AJ1: =VLOOKUP($B$1,$B$4:$CL$15,35,FALSE) -> Wahrscheinlichkeitsnetz | AK1: =VLOOKUP($B$1,$B$4:$CL$15,36,FALSE) -> 0 | AL1: =VLOOKUP($B$1,$B$4:$CL$15,37,FALSE) -> Cmu | AM1: =VLOOKUP($B$1,$B$4:$CL$15,38,FALSE) -> Cmo | AN1: =VLOOKUP($B$1,$B$4:$CL$15,39,FALSE) -> Cm | AO1: =VLOOKUP($B$1,$B$4:$CL$15,40,FALSE) -> Cmk | AP1: =VLOOKUP($B$1,$B$4:$CL$15,41,FALSE) -> Fähigkeits- kennwerte | AQ1: =VLOOKUP($B$1,$B$4:$CL$15,42,FALSE) -> Bewertung cmk => | AR1: =VLOOKUP($B$1,$B$4:$CL$15,43,FALSE) -> Median z | AS1: =VLOOKUP($B$1,$B$4:$CL$15,44,FALSE) -> Spannweite R | AT1: =VLOOKUP($B$1,$B$4:$CL$15,45,FALSE) -> Minimum | AU1: =VLOOKUP($B$1,$B$4:$CL$15,46,FALSE) -> Maximum | AV1: =VLOOKUP($B$1,$B$4:$CL$15,47,FALSE) -> Berechnete Leistung in ppm | AW1: =VLOOKUP($B$1,$B$4:$CL$15,48,FALSE) -> Über- schreitungs- anteil | AX1: =VLOOKUP($B$1,$B$4:$CL$15,49,FALSE) -> pUGW | AY1: =VLOOKUP($B$1,$B$4:$CL$15,50,FALSE) -> pOGW | AZ1: =VLOOKUP($B$1,$B$4:$CL$15,51,FALSE) -> p | BA1: =VLOOKUP($B$1,$B$4:$CL$15,52,FALSE) -> Beobachtete Leistung in ppm | BB1: =VLOOKUP($B$1,$B$4:$CL$15,53,FALSE) -> 0 | BC1: =VLOOKUP($B$1,$B$4:$CL$15,54,FALSE) -> Sprache | BD1: =VLOOKUP($B$1,$B$4:$CL$15,55,FALSE) -> User - Email | BE1: =VLOOKUP($B$1,$B$4:$CL$15,56,FALSE) -> User - key | BF1: =VLOOKUP($B$1,$B$4:$CL$15,57,FALSE) -> Gültig bis | BG1: =VLOOKUP($B$1,$B$4:$CL$15,58,FALSE) -> Notizen | BH1: =VLOOKUP($B$1,$B$4:$CL$15,59,FALSE) ->  | BI1: =VLOOKUP($B$1,$B$4:$CL$15,60,FALSE) -> Bemerkung | BJ1: =VLOOKUP($B$1,$B$4:$CL$15,61,FALSE) -> Status: Die Werte im Arbeitsblatt sind kalkuliert | BK1: =VLOOKUP($B$1,$B$4:$CL$15,62,FALSE) -> Status: Sie haben Werte verändert. Zum Kalkulieren den untenstehenden Button drücken. | BL1: =VLOOKUP($B$1,$B$4:$CL$15,63,FALSE) -> Ist Ihr Messwert einseitig begrenzt, so geben Sie nur den entsprechenden oberen oder unteren Grenzwert an. Bei einer einseitigen Grenze wird im industriellen Umfeld nur der Cmk berechnet. | BM1: =VLOOKUP($B$1,$B$4:$CL$15,64,FALSE) -> u-Wert | BN1: =VLOOKUP($B$1,$B$4:$CL$15,65,FALSE) -> + 3 Sigma | BO1: =VLOOKUP($B$1,$B$4:$CL$15,66,FALSE) -> - 3 Sigma | BP1: =VLOOKUP($B$1,$B$4:$CL$15,67,FALSE) -> Verteilung | BQ1: =VLOOKUP($B$1,$B$4:$CL$15,68,FALSE) -> Hilfe | BR1: =VLOOKUP($B$1,$B$4:$CL$15,69,FALSE) -> Normalverteilung | BS1: =VLOOKUP($B$1,$B$4:$CL$15,70,FALSE) -> Betragsverteilung 1. Art | BT1: =VLOOKUP($B$1,$B$4:$CL$15,71,FALSE) -> Kontakt | BU1: =VLOOKUP($B$1,$B$4:$CL$15,72,FALSE) -> homepage | BV1: =VLOOKUP($B$1,$B$4:$CL$15,73,FALSE) -> Ohne valide Lizenz ist die Berechnung auf 20 Werte beschränkt - Mehr Info (z. Bsp. wie Sie eine Volllizenz erhalten können) unter dem Tabellenblatt 'info_setup' | BW1: =VLOOKUP($B$1,$B$4:$CL$15,74,FALSE) -> Lizenz nicht gültig - es werden maximal 20 Werte berechnet -Mehr Info (z. Bsp. wie Sie eine Volllizenz erhalten können) unter dem Tabellenblatt 'info_setup' | BX1: =VLOOKUP($B$1,$B$4:$CL$15,75,FALSE) -> Gültige Lizenz erwerben
A2: Sprache | B2: Beschreibung | C2: 1 | D2: 2 | E2: 3 | F2: 4 | G2: 5 | H2: 6 | I2: 7 | J2: 8 | K2: 9 | L2: 10 | M2: 11 | N2: 12 | O2: 13 | P2: 14 | Q2: 15 | R2: 16 | S2: 17 | T2: 18 | U2: 19 | V2: 20 | W2: 21 | X2: 22 | Y2: 23 | Z2: 24 | AA2: 25 | AB2: 26 | AC2: 27 | AD2: 28 | AE2: 29 | AF2: 30 | AG2: 31 | AH2: 32 | AI2: 33 | AJ2: 34 | AK2: 35 | AL2: 36 | AM2: 37 | AN2: 38 | AO2: 39 | AP2: 40 | AQ2: 41 | AR2: 42 | AS2: 43 | AT2: 44 | AU2: 45 | AV2: 46 | AW2: 47 | AX2: 48 | AY2: 49 | AZ2: 50 | BA2: 51 | BB2: 52 | BC2: 53 | BD2: 54 | BE2: 55 | BF2: 56 | BG2: 57 | BH2: 58 | BI2: 59 | BJ2: 61 | BK2: 62 | BL2: 63 | BM2: 63 | BN2: 64 | BO2: 65 | BP2: 66 | BQ2: 67 | BR2: 68 | BS2: 69 | BT2: 70 | BU2: 71 | BV2: 72 | BW2: 73 | BX2: 74
A3: Tabelle | C3: input | D3: input | E3: input | F3: input | G3: input | H3: input | I3: input | J3: input | K3: input | L3: input | M3: input | N3: input | O3: input | P3: input | Q3: input | R3: input | S3: input | T3: input | U3: input | V3: input | W3: input | X3: input | Y3: input | Z3: input | AA3: input | AB3: input | AC3: input | AD3: input | AE3: input | AF3: input | AG3: input | AH3: input | AI3: input | AJ3: input | AK3: input | AL3: input | AM3: input | AN3: input | AO3: input | AP3: input | AQ3: input | AR3: input | AS3: input | AT3: input | AU3: input | AV3: input | AW3: input | AX3: input | AY3: input | AZ3: input | BA3: input | BC3: language | BD3: language | BE3: language | BF3: language | BG3: language | BH3: language | BI3: language | BJ3: input | BK3: input | BL3: input | BM3: input | BN3: input | BO3: input | BP3: input | BQ3: info_setup | BR3: input | BS3: input | BT3: info_setup | BU3: info_setup | BV3: input | BW3: licence | BX3: licence
B4: Zelle | C4: O2 | D4: O4 | E4: O5 | F4: N7 | G4: N8 | H4: N9 | I4: N10 | J4: N11 | K4: N12 | L4: N13 | M4: N14 | N4: N15 | O4: N16 | P4: N17 | Q4: N18 | R4: N19 | S4: N20 | T4: N21 | U4: O20 | V4: P19 | W4: P20 | X4: P21 | Y4: N23 | Z4: N24 | AA4: N25 | AB4: N26 | AC4: P26 | AD4: P26 | AF4: Diagramm | AG4: Diagramm | AH4: Diagramm | AI4: Diagramm | AJ4: Diagramm | AL4: O30 | AM4: O31 | AN4: O32 | AO4: O33 | AP4: N30 | AQ4: N34 | AR4: N36 | AS4: N37 | AT4: N38 | AU4: N39 | AV4: N41 | AW4: N42 | AX4: O42 | AY4: O43 | AZ4: O44 | BA4: N46 | BC4: B4 | BD4: B5 | BE4: B6 | BF4: B7 | BG4: B8 | BH4: B9 | BI4: B10 | BJ4: AB2 | BK4: AB2 | BL4: R48 | BM4: Diagramm | BN4: Diagramm | BO4: Diagramm | BP4: N22 | BQ4: Verteilung | BR4: Verteilung | BS4: Verteilung | BT4: B19 | BU4: B20 | BV4: msgbox | BW4: msgbox | BX4: msgbox
A5: deutsch | B5: 1 | C5: Prozess- und Maschinenfähigkeit | D5: Werte können geändert werden | E5: Werte werden berechnet (Blatt Berechnung) | F5: Artikel: | G5: Nummer: | H5: Zeichnung: | I5: Prüfer: | J5: Messmittel: | K5: Datum: | L5: Merkmal: | M5: Maßeinheit: | N5: Sollwert msoll = | O5: UGW | P5: OGW | Q5: Anzahl Klassen Histogramm | R5: Cpk< | S5: Cpk | T5: Cpk> | U5: dazwischen | V5: Prozess nicht fähig | W5: Prozess bedingt fähig | X5: Prozess fähig | Y5: Stichprobenumfang | Z5: Mittelwert | AA5: Standardabweichung | AB5: Die Werte sind nach Andersson Darling Test | AC5: normalverteilt | AD5: nicht normalverteilt | AF5: OGW | AG5: UGW | AH5: Stichprobe chronologisch | AI5: Histogramm | AJ5: Wahrscheinlichkeitsnetz | AL5: Cmu | AM5: Cmo | AN5: Cm | AO5: Cmk | AP5: Fähigkeits- kennwerte | AQ5: ="Bewertung cmk =>" -> Bewertung cmk => | AR5: Median z | AS5: Spannweite R | AT5: Minimum | AU5: Maximum | AV5: Berechnete Leistung in ppm | AW5: Über- schreitungs- anteil | AX5: pUGW | AY5: pOGW | AZ5: p | BA5: Beobachtete Leistung in ppm | BC5: Sprache | BD5: User - Email | BE5: User - key | BF5: Gültig bis | BG5: Notizen | BH5: ="" ->  | BI5: Bemerkung | BJ5: Status: Die Werte im Arbeitsblatt sind kalkuliert | BK5: Status: Sie haben Werte verändert. Zum Kalkulieren den untenstehenden Button drücken. | BL5: Ist Ihr Messwert einseitig begrenzt, so geben Sie nur den entsprechenden oberen oder unteren Grenzwert an. Bei einer einseitigen Grenze wird im industriellen Umfeld nur der Cmk berechnet. | BM5: u-Wert | BN5: ="+ 3 Sigma" -> + 3 Sigma | BO5: ="- 3 Sigma" -> - 3 Sigma | BP5: Verteilung | BQ5: Hilfe | BR5: Normalverteilung | BS5: Betragsverteilung 1. Art | BT5: Kontakt | BU5: homepage | BV5: Ohne valide Lizenz ist die Berechnung auf 20 Werte beschränkt - Mehr Info (z. Bsp. wie Sie eine Volllizenz erhalten können) unter dem Tabellenblatt 'info_setup' | BW5: Lizenz nicht gültig - es werden maximal 20 Werte berechnet -Mehr Info (z. Bsp. wie Sie eine Volllizenz erhalten können) unter dem Tabellenblatt 'info_setup' | BX5: Gültige Lizenz erwerben
A6: english | B6: 2 | C6: process and machine capability | D6: value could be changed | E6: value is calculated | F6: part: | G6: part number: | H6: drawing: | I6: inspector: | J6: measuring dev: | K6: date: | L6: attribute: | M6: measuring unit: | N6: nominal value = | O6: lower spec. limit LSL | P6: upper spec. limit USL | Q6: number of classes histogram | R6: Cpk< | S6: Cpk | T6: Cpk> | U6: between | V6: process not capable | W6: process limited capable | X6: process capable | Y6: sample size | Z6: mid | AA6: standard deviation s | AB6: values are according Andersson Darling test | AC6: normal distributed | AD6: not normal distributed | AF6: USL | AG6: LSL | AH6: random sample chronological | AI6: histogram | AJ6: probability plot | AL6: Cpkl | AM6: Cpku | AN6: Cp | AO6: Cpk | AP6: probability values | AQ6: evaluation Cpk => | AR6: median | AS6: range | AT6: minimum | AU6: maximum | AV6: calculated performance | AW6: exceedance | AX6: pLSL | AY6: pUSL | AZ6: p | BA6: observed performance in ppm | BC6: language | BD6: user - email | BE6: user - key | BF6: valid until | BG6: note | BH6: ="" ->  | BI6: note | BJ6: The values are calculated | BK6: Sie haben Werte verändert. Bitte kalkulieren | BL6: If your measured value is one-sided limited, enter only the corresponding upper or lower limit value. With a one-sided limit, in the industrial environment only the Cpk is calclulated | BM6: u-value | BN6: ="+ 3 sigma" -> + 3 sigma | BO6: ="- 3 sigma" -> - 3 sigma | BP6: distribution | BQ6: help | BR6: normal distribution | BS6: truncated normal distribution | BT6: contact | BU6: homepage | BV6: Without a valid licence, the calculation is limited to 20 values - More information (e.g. how to get a full licence) in the spreadsheet 'info_setup'. | BW6: Licence not valid, the calculation is limited to 20 values - More information (e.g. how to get a full licence) in the spreadsheet 'info_setup'. | BX6: buy the full licence
A7: italiano | B7: 3 | C7: Capacità di processo e macchina | D7: Valore modificabile | E7: Valore calcolato | F7: Articolo: | G7: Codice: | H7: Disegno | I7: Ispettore | J7: Strumento | K7: Data | L7: Attributo: | M7: Unità di misura | N7: Valore nominale = | O7: Limite inferiore di specifica LSM | P7: Limite superiore di specifica LSS | Q7: Numero di classi dell'istogramma | R7: Cpk< | S7: Cpk | T7: Cpk> | U7: tra | V7: Processo non capace | W7: Processo capace in modo limitatato | X7: Processo capace | Y7: Dimensione del campione | Z7: media | AA7: Deviazione standard s | AB7: Valori in accorso al test Andersson Darling | AC7: Distribuzione normale | AD7: Distribuzione non normale | AF7: USL | AG7: LSL | AH7: Campione casuale cronologico | AI7: Istogramma | AJ7: Grafico delle probabilità | AL7: Cpkl | AM7: Cpku | AN7: Cp | AO7: Cpk | AP7: Valori di probabilità | AQ7: Vautazione Cpk => | AR7: Media | AS7: Range | AT7: Minimo | AU7: Massimo | AV7: Performance calcolata | AW7: Eccedenza | AX7: pLSL | AY7: pUSL | AZ7: p | BA7: Prestazione osservata in ppm | BC7: d | BD7: user - Email | BE7: user - key | BF7: valid until | BG7: note | BH7: ="" ->  | BI7: note | BJ7: Ihre aktuellen Werte sind kalkuliert | BK7: Sie haben Werte verändert. Bitte kalkulieren | BL7: Se il valore misurato è limitato da un lato, inserire solo il valore limite superiore o inferiore corrispondente. Se il limite è unilaterale, nell'ambiente industriale viene calcolato solo il Cpk. | BN7: ="+ 3 sigma" -> + 3 sigma | BO7: ="- 3 sigma" -> - 3 sigma | BP7: distribuzione | BQ7: distribuzione | BR7: distribuzione normale | BS7: distribuzione normale troncata | BT7: NN | BU7: NN | BV7: Senza una licenza valida, il calcolo è limitato a 20 valori - Ulteriori informazioni (ad esempio su come ottenere una licenza completa) nel foglio di calcolo "info_setup". | BW7: licenz non valida, il calcolo è limitato a 20 valori - Ulteriori informazioni (ad esempio su come ottenere una licenza completa) nel foglio di calcolo "info_setup". | BX7: Acquistare la licenza completa
A8: espanol | B8: 4 | C8: NN2 | D8: NN2 | E8: NN2 | F8: NN2 | G8: NN2 | H8: NN2 | I8: NN2 | J8: NN2 | K8: NN2 | L8: NN2 | M8: NN2 | N8: NN2 | O8: NN2 | P8: NN2 | Q8: NN2 | R8: NN2 | S8: NN2 | T8: NN2 | U8: NN2 | V8: NN2 | W8: NN2 | X8: NN2 | Y8: NN2 | Z8: NN2 | AA8: NN2 | AB8: NN2 | AC8: NN2 | AD8: NN2 | AE8: NN2 | AF8: NN2 | AG8: NN2 | AH8: NN2 | AI8: NN2 | AJ8: NN2 | AK8: NN2 | AL8: NN2 | AM8: NN2 | AN8: NN2 | AO8: NN2 | AP8: NN2 | AQ8: NN2 | AR8: NN2 | AS8: NN2 | AT8: NN2 | AU8: NN2 | AV8: NN2 | AW8: NN2 | AX8: NN2 | AY8: NN2 | AZ8: NN2 | BA8: NN2 | BB8: NN2 | BC8: NN2 | BD8: NN2 | BE8: NN2 | BF8: NN2 | BG8: NN2 | BH8: NN2 | BI8: NN2 | BJ8: NN2 | BK8: NN2 | BL8: NN2 | BM8: NN2 | BN8: NN2 | BO8: NN2 | BP8: NN2 | BQ8: NN2 | BR8: NN2 | BS8: NN2 | BT8: NN2 | BU8: NN2 | BV8: NN2 | BW8: NN2 | BX8: NN2
A9: francais | B9: 5 | C9: NN3 | D9: NN3 | E9: NN3 | F9: NN3 | G9: NN3 | H9: NN3 | I9: NN3 | J9: NN3 | K9: NN3 | L9: NN3 | M9: NN3 | N9: NN3 | O9: NN3 | P9: NN3 | Q9: NN3 | R9: NN3 | S9: NN3 | T9: NN3 | U9: NN3 | V9: NN3 | W9: NN3 | X9: NN3 | Y9: NN3 | Z9: NN3 | AA9: NN3 | AB9: NN3 | AC9: NN3 | AD9: NN3 | AE9: NN3 | AF9: NN3 | AG9: NN3 | AH9: NN3 | AI9: NN3 | AJ9: NN3 | AK9: NN3 | AL9: NN3 | AM9: NN3 | AN9: NN3 | AO9: NN3 | AP9: NN3 | AQ9: NN3 | AR9: NN3 | AS9: NN3 | AT9: NN3 | AU9: NN3 | AV9: NN3 | AW9: NN3 | AX9: NN3 | AY9: NN3 | AZ9: NN3 | BA9: NN3 | BB9: NN3 | BC9: NN3 | BD9: NN3 | BE9: NN3 | BF9: NN3 | BG9: NN3 | BH9: NN3 | BI9: NN3 | BJ9: NN3 | BK9: NN3 | BL9: NN3 | BM9: NN3 | BN9: NN3 | BO9: NN3 | BP9: NN3 | BQ9: NN3 | BR9: NN3 | BS9: NN3 | BT9: NN3 | BU9: NN3 | BV9: NN3 | BW9: NN3 | BX9: NN3
A10: portugues | B10: 6 | C10: NN4 | D10: NN4 | E10: NN4 | F10: NN4 | G10: NN4 | H10: NN4 | I10: NN4 | J10: NN4 | K10: NN4 | L10: NN4 | M10: NN4 | N10: NN4 | O10: NN4 | P10: NN4 | Q10: NN4 | R10: NN4 | S10: NN4 | T10: NN4 | U10: NN4 | V10: NN4 | W10: NN4 | X10: NN4 | Y10: NN4 | Z10: NN4 | AA10: NN4 | AB10: NN4 | AC10: NN4 | AD10: NN4 | AE10: NN4 | AF10: NN4 | AG10: NN4 | AH10: NN4 | AI10: NN4 | AJ10: NN4 | AK10: NN4 | AL10: NN4 | AM10: NN4 | AN10: NN4 | AO10: NN4 | AP10: NN4 | AQ10: NN4 | AR10: NN4 | AS10: NN4 | AT10: NN4 | AU10: NN4 | AV10: NN4 | AW10: NN4 | AX10: NN4 | AY10: NN4 | AZ10: NN4 | BA10: NN4 | BB10: NN4 | BC10: NN4 | BD10: NN4 | BE10: NN4 | BF10: NN4 | BG10: NN4 | BH10: NN4 | BI10: NN4 | BJ10: NN4 | BK10: NN4 | BL10: NN4 | BM10: NN4 | BN10: NN4 | BO10: NN4 | BP10: NN4 | BQ10: NN4 | BR10: NN4 | BS10: NN4 | BT10: NN4 | BU10: NN4 | BV10: NN4 | BW10: NN4 | BX10: NN4
A11: mandarin | B11: 7 | C11: NN5 | D11: NN5 | E11: NN5 | F11: NN5 | G11: NN5 | H11: NN5 | I11: NN5 | J11: NN5 | K11: NN5 | L11: NN5 | M11: NN5 | N11: NN5 | O11: NN5 | P11: NN5 | Q11: NN5 | R11: NN5 | S11: NN5 | T11: NN5 | U11: NN5 | V11: NN5 | W11: NN5 | X11: NN5 | Y11: NN5 | Z11: NN5 | AA11: NN5 | AB11: NN5 | AC11: NN5 | AD11: NN5 | AE11: NN5 | AF11: NN5 | AG11: NN5 | AH11: NN5 | AI11: NN5 | AJ11: NN5 | AK11: NN5 | AL11: NN5 | AM11: NN5 | AN11: NN5 | AO11: NN5 | AP11: NN5 | AQ11: NN5 | AR11: NN5 | AS11: NN5 | AT11: NN5 | AU11: NN5 | AV11: NN5 | AW11: NN5 | AX11: NN5 | AY11: NN5 | AZ11: NN5 | BA11: NN5 | BB11: NN5 | BC11: NN5 | BD11: NN5 | BE11: NN5 | BF11: NN5 | BG11: NN5 | BH11: NN5 | BI11: NN5 | BJ11: NN5 | BK11: NN5 | BL11: NN5 | BM11: NN5 | BN11: NN5 | BO11: NN5 | BP11: NN5 | BQ11: NN5 | BR11: NN5 | BS11: NN5 | BT11: NN5 | BU11: NN5 | BV11: NN5 | BW11: NN5 | BX11: NN5
A12: hindi | B12: 8 | C12: NN6 | D12: NN6 | E12: NN6 | F12: NN6 | G12: NN6 | H12: NN6 | I12: NN6 | J12: NN6 | K12: NN6 | L12: NN6 | M12: NN6 | N12: NN6 | O12: NN6 | P12: NN6 | Q12: NN6 | R12: NN6 | S12: NN6 | T12: NN6 | U12: NN6 | V12: NN6 | W12: NN6 | X12: NN6 | Y12: NN6 | Z12: NN6 | AA12: NN6 | AB12: NN6 | AC12: NN6 | AD12: NN6 | AE12: NN6 | AF12: NN6 | AG12: NN6 | AH12: NN6 | AI12: NN6 | AJ12: NN6 | AK12: NN6 | AL12: NN6 | AM12: NN6 | AN12: NN6 | AO12: NN6 | AP12: NN6 | AQ12: NN6 | AR12: NN6 | AS12: NN6 | AT12: NN6 | AU12: NN6 | AV12: NN6 | AW12: NN6 | AX12: NN6 | AY12: NN6 | AZ12: NN6 | BA12: NN6 | BB12: NN6 | BC12: NN6 | BD12: NN6 | BE12: NN6 | BF12: NN6 | BG12: NN6 | BH12: NN6 | BI12: NN6 | BJ12: NN6 | BK12: NN6 | BL12: NN6 | BM12: NN6 | BN12: NN6 | BO12: NN6 | BP12: NN6 | BQ12: NN6 | BR12: NN6 | BS12: NN6 | BT12: NN6 | BU12: NN6 | BV12: NN6 | BW12: NN6 | BX12: NN6
A13: arabe | B13: 9 | C13: NN7 | D13: NN7 | E13: NN7 | F13: NN7 | G13: NN7 | H13: NN7 | I13: NN7 | J13: NN7 | K13: NN7 | L13: NN7 | M13: NN7 | N13: NN7 | O13: NN7 | P13: NN7 | Q13: NN7 | R13: NN7 | S13: NN7 | T13: NN7 | U13: NN7 | V13: NN7 | W13: NN7 | X13: NN7 | Y13: NN7 | Z13: NN7 | AA13: NN7 | AB13: NN7 | AC13: NN7 | AD13: NN7 | AE13: NN7 | AF13: NN7 | AG13: NN7 | AH13: NN7 | AI13: NN7 | AJ13: NN7 | AK13: NN7 | AL13: NN7 | AM13: NN7 | AN13: NN7 | AO13: NN7 | AP13: NN7 | AQ13: NN7 | AR13: NN7 | AS13: NN7 | AT13: NN7 | AU13: NN7 | AV13: NN7 | AW13: NN7 | AX13: NN7 | AY13: NN7 | AZ13: NN7 | BA13: NN7 | BB13: NN7 | BC13: NN7 | BD13: NN7 | BE13: NN7 | BF13: NN7 | BG13: NN7 | BH13: NN7 | BI13: NN7 | BJ13: NN7 | BK13: NN7 | BL13: NN7 | BM13: NN7 | BN13: NN7 | BO13: NN7 | BP13: NN7 | BQ13: NN7 | BR13: NN7 | BS13: NN7 | BT13: NN7 | BU13: NN7 | BV13: NN7 | BW13: NN7 | BX13: NN7
A14: NN8 | B14: 10 | C14: NN8 | D14: NN8 | E14: NN8 | F14: NN8 | G14: NN8 | H14: NN8 | I14: NN8 | J14: NN8 | K14: NN8 | L14: NN8 | M14: NN8 | N14: NN8 | O14: NN8 | P14: NN8 | Q14: NN8 | R14: NN8 | S14: NN8 | T14: NN8 | U14: NN8 | V14: NN8 | W14: NN8 | X14: NN8 | Y14: NN8 | Z14: NN8 | AA14: NN8 | AB14: NN8 | AC14: NN8 | AD14: NN8 | AE14: NN8 | AF14: NN8 | AG14: NN8 | AH14: NN8 | AI14: NN8 | AJ14: NN8 | AK14: NN8 | AL14: NN8 | AM14: NN8 | AN14: NN8 | AO14: NN8 | AP14: NN8 | AQ14: NN8 | AR14: NN8 | AS14: NN8 | AT14: NN8 | AU14: NN8 | AV14: NN8 | AW14: NN8 | AX14: NN8 | AY14: NN8 | AZ14: NN8 | BA14: NN8 | BB14: NN8 | BC14: NN8 | BD14: NN8 | BE14: NN8 | BF14: NN8 | BG14: NN8 | BH14: NN8 | BI14: NN8 | BJ14: NN8 | BK14: NN8 | BL14: NN8 | BM14: NN8 | BN14: NN8 | BO14: NN8 | BP14: NN8 | BQ14: NN8 | BR14: NN8 | BS14: NN8 | BT14: NN8 | BU14: NN8 | BV14: NN8 | BW14: NN8 | BX14: NN8
A15: NN9 | B15: 11 | C15: NN9 | D15: NN9 | E15: NN9 | F15: NN9 | G15: NN9 | H15: NN9 | I15: NN9 | J15: NN9 | K15: NN9 | L15: NN9 | M15: NN9 | N15: NN9 | O15: NN9 | P15: NN9 | Q15: NN9 | R15: NN9 | S15: NN9 | T15: NN9 | U15: NN9 | V15: NN9 | W15: NN9 | X15: NN9 | Y15: NN9 | Z15: NN9 | AA15: NN9 | AB15: NN9 | AC15: NN9 | AD15: NN9 | AE15: NN9 | AF15: NN9 | AG15: NN9 | AH15: NN9 | AI15: NN9 | AJ15: NN9 | AK15: NN9 | AL15: NN9 | AM15: NN9 | AN15: NN9 | AO15: NN9 | AP15: NN9 | AQ15: NN9 | AR15: NN9 | AS15: NN9 | AT15: NN9 | AU15: NN9 | AV15: NN9 | AW15: NN9 | AX15: NN9 | AY15: NN9 | AZ15: NN9 | BA15: NN9 | BB15: NN9 | BC15: NN9 | BD15: NN9 | BE15: NN9 | BF15: NN9 | BG15: NN9 | BH15: NN9 | BI15: NN9 | BJ15: NN9 | BK15: NN9 | BL15: NN9 | BM15: NN9 | BN15: NN9 | BO15: NN9 | BP15: NN9 | BQ15: NN9 | BR15: NN9 | BS15: NN9 | BT15: NN9 | BU15: NN9 | BV15: NN9 | BW15: NN9 | BX15: NN9
